Cogmind - Beta 15 @@@ ROGUE MODE // 2025.06.22 @ 17:49:12 Player: Cracklepappy Result: Destroyed by Executioner with Helical Railgun Performance ------------- Evolutions (9) 4500 Regions Visited (35) 7000 Robots Destroyed (632) 3160 Value Destroyed (41819) 41819 Prototype IDs (129) 2580 Alien Tech Used (4) 800 Bonus (37833) 37833 TOTAL SCORE: 97692 Bonus ------- Triggered High Security 1000 High Alert Combat Kills 14877 Follower Combat Kills 11899 Entered Garrisons 2000 Used RIF Installer 6500 Built Enhanced Grunts 300 A7 Reached Mainframe 300 Met R17 at Cetus 500 Met R17 at Research 2000 Scanned by Researcher 500 Friendly Fire -2043 Cogmind --------- Core Integrity 0/1600 Matter 300/300 Energy 99/100 System Corruption 23% Temperature Cool (0) Movement Core (50) Location -1/Access Parts ------- > --- POWER (2) -------- (None) > --- PROPULSION (4) --- (None) > --- UTILITY (15) ----- (None) > --- WEAPON (4) ------- (None) > --- INVENTORY (5) ---- Heavy Shield Leg Compact Wheel Improved Armor Integrity Analyzer Advanced Weapon Cycler Peak State ------------ > --- POWER ------------ Concept Zero-point Core > --- PROPULSION ------- Experimental Heavy Siege Treads Experimental Heavy Siege Treads > --- UTILITY ---------- Experimental Heat Sink Concept Antigrav Storage Unit Concept Hypertargeting System Concept Core Analysis Suite Centrium Medium Armor Plating Concept RG22 Armor Concept RG22 Armor Concept RG22 Armor Graphene Brace Concept Network Penetrator Relay Coupler [NC] Relay Coupler [C] Relay Coupler [C] Relay Coupler [C] > --- WEAPON ----------- Concept XC Strikerail Concept XC Strikerail Concept XC Strikerail Concept Miniperforator > --- INVENTORY -------- Concept Zero-point Core Medium Treads Experimental Coolant Injector Concept Thermoelectric Network Concept Thermoelectric Network Concept Chromion Battery Concept Chromion Battery Concept NT7 Matterbank Concept Recoil Nullifier Concept Cloak Mesh Relay Coupler [NC] Improved Component Analysis Suite Concept Matter Streamer Crosscalibrator Transdimensional Reconstructor Subatomic Replicator Concept XC Strikerail Concept XC Strikerail Concept Helical Railcannon Concept Helical Railcannon Concept Rapid Grenade Launcher Concept Arcsight Missile Launcher Advanced Remote Datajack Improved Plasma Cutter Experimental Jetlance [Rating: 278] Favorites ----------- Power Enhanced Fission Core Engine Light Angular Momentum Engine Power Core Enhanced Fission Core Reactor Mini Fusion Reactor Propulsion Enhanced Armored Leg Treads Light Treads Leg Enhanced Armored Leg Wheel Armored Wheel Hover Unit Cooled Aerolev Unit Flight Unit Improved VTOL Module Utility Relay Coupler [C] Device Improved Cooling System Storage Large Storage Unit Processor Core Analyzer Hackware Relay Coupler [C] Protection Concept RG22 Armor Weapon Cooled Phase Cannon Energy Gun Spread Laser Energy Cannon Cooled Phase Cannon Ballistic Gun Improved Assault Rifle Ballistic Cannon Light Antimatter Cannon Launcher Concept Arcsight Missile Launcher Special Weapon Improved Remote Datajack Impact Weapon Powered Hammer Slashing Weapon Sigix Broadsword Piercing Weapon Experimental Jetlance Special Melee Weapon Advanced Datajack Build | -11 -10 -10 -9 -9 -8 -8 -8 -8 -7 -7 -7 -7 -7 -7 -6 -6 -5 -5 -5 -5 -5 -5 -5 -5 -4 -4 -4 -4 -3 -3 -2 -2 -2 -2 -1 ------- Run | Yrd Mat Min Mat Min Mat Gar Mat Gar Fac Was Fac Gar Fac Gar Fac Gar Fac Gar Fac Ext Cet Arc Hub Gar Fac Was Fac Gar Res Gar Res Qua Frg Gar Acc Slots Evolved 18 | . . . 2 . 2 . . . 2 . . . . . 2 . 2 . . . . . . . 2 . . . 2 . 2 . . . 2 Power 1 | . . . . . . . . . . . . . . . . . . . . . . . . . . . . . . . . . . . 1 Propulsion 2 | . . . 1 . . . . . 1 . . . . . . . . . . . . . . . . . . . . . . . . . . Utility 13 | . . . . . 1 . . . 1 . . . . . 2 . 2 . . . . . . . 2 . . . 2 . 2 . . . 1 Weapon 2 | . . . 1 . 1 . . . . . . . . . . . . . . . . . . . . . . . . . . . . . . Parts Attached 443 | 7 14 2 22 . 10 14 30 16 8 3 21 7 7 15 3 10 4 10 4 . 1 11 2 9 4 2 17 17 4 25 11 9 70 23 31 Power 32 | 1 2 . 3 . . 1 2 1 1 . 2 . . . 1 1 . 1 1 . . . 1 . . . . 1 . 1 . . 9 . 3 Engine 12 | 1 2 . 3 . . 1 1 1 . . . . . . . 1 . 1 . . . . . . . . . . . . . . . . 1 Core 9 | . . . . . . . 1 . 1 . 2 . . . 1 . . . 1 . . . . . . . . 1 . . . . 1 . 1 Reactor 11 | . . . . . . . . . . . . . . . . . . . . . . . 1 . . . . . . 1 . . 8 . 1 Propulsion 74 | 2 1 . 6 . 4 3 14 3 5 . 5 . . 6 . . . . . . . 1 . . . . . 3 . 2 1 . 4 7 7 Treads 42 | 2 1 . 6 . 4 3 12 . . . . . . . . . . . . . . . . . . . . 2 . 1 1 . 4 4 2 Leg 7 | . . . . . . . . . . . . . . 6 . . . . . . . 1 . . . . . . . . . . . . . Wheel 15 | . . . . . . . 2 3 . . . . . . . . . . . . . . . . . . . 1 . 1 . . . 3 5 Hover 4 | . . . . . . . . . . . 4 . . . . . . . . . . . . . . . . . . . . . . . . Flight 6 | . . . . . . . . . 5 . 1 . . . . . . . . . . . . . . . . . . . . . . . . Utility 211 | 2 4 . 5 . 2 3 6 4 2 2 8 5 4 5 2 6 3 7 3 . . 8 1 6 3 1 16 12 2 9 9 7 36 13 15 Device 52 | 1 1 . 1 . 1 1 . 3 1 1 2 . 1 3 . 3 . 1 . . . 1 . . . 1 5 1 . 2 1 1 13 1 6 Storage 13 | 1 2 . 1 . . . . . . . . . 2 . . . . . . . . . . . . . . 1 . 1 . . 4 1 . Processor 10 | . . . . . . . . . 1 1 . . . . . 1 . . . . . . . . . . . . . 2 1 . 1 1 2 Hackware 112 | . . . . . 1 . 4 1 . . 5 4 1 2 2 2 3 6 3 . . 5 1 6 3 . 10 10 2 4 7 6 9 10 5 Protection 24 | . 1 . 3 . . 2 2 . . . 1 1 . . . . . . . . . 2 . . . . 1 . . . . . 9 . 2 Artifact . | . . . . . . . . . . . . . . . . . . . . . . . . . . . . . . . . . . . . Weapon 126 | 2 7 2 8 . 4 7 8 8 . 1 6 2 3 4 . 3 1 2 . . 1 2 . 3 1 1 1 1 2 13 1 2 21 3 6 Energy Gun 15 | 2 2 1 1 . . . . . . . 3 . . . . . . . . . . . . . . . . 1 1 3 . . 1 . . Energy Cannon 17 | . 2 . 2 . . 1 . 1 . . . 2 . 3 . 1 . . . . . . . . . . . . . . . . 2 1 2 Ballistic Gun 45 | . . . 4 . 3 6 7 4 . . 2 . 2 . . 1 . 1 . . . 1 . 1 . . . . 1 5 1 . 5 . 1 Ballistic Cannon 11 | . 2 . 1 . . . . . . . . . . . . . . . . . . . . . . . . . . 1 . . 4 1 2 Launcher 12 | . 1 . . . . . . 1 . 1 . . . 1 . 1 . . . . 1 . . . . . . . . . . 1 4 . 1 Special Weapon 18 | . . 1 . . . . . 1 . . . . 1 . . . 1 1 . . . . . 2 1 1 1 . . 4 . . 3 1 . Impact Weapon 2 | . . . . . . . . 1 . . 1 . . . . . . . . . . . . . . . . . . . . . . . . Slashing Weapon 2 | . . . . . . . . . . . . . . . . . . . . . . . . . . . . . . . . 1 1 . . Piercing Weapon 1 | . . . . . . . . . . . . . . . . . . . . . . . . . . . . . . . . . 1 . . Special Melee Weapon 3 | . . . . . 1 . 1 . . . . . . . . . . . . . . 1 . . . . . . . . . . . . . Unidentified Prototypes 38 | . . . . . 1 . . . . 2 6 . . 4 . 1 . . . . . 1 . 1 . . . . . 7 1 1 12 . 1 Corrupted Parts 2 | . . . . . . . . . . . . . . . . . . . . . . . . 1 . . . . . . . . 1 . . System Corruption 8 | . . . . . . . . . . . . . . . . . . . . . . . . 7 . . . . . . . . 1 . . Parts Lost 89 | . . . 1 . 1 4 3 7 . . 5 1 . 1 . 1 . 2 1 . 1 . . 1 . . . 3 . 10 . 1 11 5 30 Power 9 | . . . . . . 1 . 1 . . . . . . . . . . . . . . . . . . . 1 . 1 . . 2 . 3 Propulsion 14 | . . . 1 . . 1 1 1 . . 1 . . . . . . . . . . . . . . . . . . 1 . . 1 1 6 Utility 32 | . . . . . 1 1 1 2 . . . 1 . 1 . . . 2 1 . . . . 1 . . . . . 1 . 1 6 3 10 Weapon 34 | . . . . . . 1 1 3 . . 4 . . . . 1 . . . . 1 . . . . . . 2 . 7 . . 2 1 11 Highest Loss Streak 12 | . . . 1 . 1 2 1 4 . . 5 1 . 1 . 1 . 1 1 . 1 . . 1 . . . 1 . 5 . 1 2 1 12 To Critical Strikes . | . . . . . . . . . . . . . . . . . . . . . . . . . . . . . . . . . . . . Average Backups 19 | 5 16 20 24 25 24 24 24 24 6 4 4 4 9 9 13 14 12 14 14 12 14 13 15 14 14 15 14 20 25 27 27 28 25 24 22 Power . | . 1 1 1 1 1 1 1 . . . . . . . 1 . 1 1 1 1 1 1 1 1 1 1 1 . . . 1 1 1 1 . Propulsion 3 | 3 3 2 7 7 8 8 8 8 1 1 1 . . . 2 2 2 2 2 2 2 2 2 2 2 2 1 1 3 2 2 5 3 . . Utility 8 | . 3 5 8 7 6 5 6 6 2 2 2 4 6 4 6 9 7 7 7 5 5 6 8 7 7 7 6 15 19 21 20 17 12 11 12 Weapon 4 | . 8 11 6 8 8 7 7 7 1 1 . . 2 2 3 2 2 2 2 4 6 3 2 2 2 2 1 . . . . 1 4 7 6 Tool/Special . | . . . . . . . . . . . . . . . . . . . . . . . . . . . . . . . . . . . . Unused Backups 173 | . 8 2 9 1 3 6 8 4 9 . 1 4 2 13 1 8 . 4 2 1 4 5 1 7 . . 9 10 . 9 4 2 19 5 12 Power 10 | . . . 2 . . . 1 1 . . . . . 1 . . . . 1 1 1 . . . . . . . . . . 1 1 . . Propulsion 21 | . 3 1 1 . . . 4 . 2 . . . 1 . . 1 . . . . . . . . . . . . . . . . 6 1 1 Utility 109 | . 3 . 5 1 3 4 . 1 3 . . 3 . 10 . 7 . 4 1 . 2 2 1 7 . . 9 9 . 8 4 . 10 2 10 Weapon 28 | . 2 1 1 . . 2 3 2 3 . 1 1 1 2 . . . . . . 1 3 . . . . . 1 . . . 1 1 2 . Tool/Special 5 | . . . . . . . . . 1 . . . . . 1 . . . . . . . . . . . . . . 1 . . 1 . 1 Average Slot Usage (%) 95 | . 99 100 99 100 99 98 99 99 98 100 99 98 95 99 99 97 98 98 99 100 97 97 99 99 94 99 98 91 84 87 88 82 83 93 87 Engine 3 | . 14 14 11 11 9 8 6 7 . . . . . . . 4 5 5 . . . . . . . . . . . . . . . . . Core 2 | . . . . . . . 2 1 6 7 7 7 7 7 6 1 . . 4 5 5 5 4 5 5 5 5 5 4 2 . . . 4 3 Treads 9 | . 28 28 32 33 27 27 26 2 . . . . . . . . . . . . . . . . . . . 4 9 4 4 8 8 10 2 Leg 9 | . . . . . . . . . . . . . . 29 26 26 23 22 23 23 23 23 23 23 21 21 20 11 . . . . . . . Wheel 1 | . . . . . . . . 24 1 . . . . . . . . . . . . . . . . . . . . 7 6 . . 2 7 Flight 1 | . . . . . . . . . 28 30 26 . . . . . . . . . . . . . . . . . . . . . . . . Device 5 | . 10 14 . . 8 6 3 15 14 14 8 5 10 14 6 8 7 3 1 . . . . . . 4 2 . . 1 2 . 4 13 19 Storage 6 | . 14 14 11 11 9 9 9 9 . . . . 3 3 6 6 5 5 5 5 5 5 5 5 5 5 5 5 4 4 4 4 5 4 3 Hackware 23 | . . . . . . 9 9 1 7 7 12 11 7 10 25 21 31 34 38 41 41 39 40 34 36 36 37 41 46 44 48 50 38 21 16 Protection 3 | . 3 . 10 11 9 1 4 1 . . . 4 . . . . . . . . . . . 4 5 5 5 2 . . . . 6 15 12 Energy Gun 2 | . 12 27 . . . . . . . . 1 16 7 . . . . . . . . . . . . . . 4 2 3 . . . . . Energy Cannon 7 | . 5 . . . . . . 11 . . . 2 10 25 20 16 11 15 14 15 13 15 17 17 15 15 15 6 4 . . . . . . Ballistic Gun 9 | . . . 26 33 35 33 32 24 26 27 23 . 1 . . 4 5 3 3 . 2 . 1 . . . . 4 6 6 4 . 3 12 6 Ballistic Cannon 1 | . 9 . 5 . . . . . . . . . . . . . . . . . . . . . . . . . . 1 4 3 2 2 5 Special Weapon 2 | . . . . . . 2 . . 2 2 3 3 5 4 6 5 4 3 3 5 2 . . 4 5 5 4 5 4 5 7 4 2 . 1 Peak Build Rating 278 | 7 11 11 23 23 34 36 39 43 53 54 79 79 73 89 84 84 84 94 99 98 99 109 101 112 120 125 129 129 139 142 159 183 274 278 260 Average Rating 95 | 6 9 10 20 22 29 29 33 40 51 51 54 72 67 81 80 78 82 89 96 97 96 98 100 110 116 124 121 124 137 134 152 173 214 249 226 On Entrance 87 | . 7 11 11 23 23 34 36 37 39 52 52 79 73 66 78 80 82 83 93 98 96 95 100 97 111 116 125 122 124 139 142 156 182 274 223 Naked Turns 8 | . . . . . . . . . . . . . . . . . . . . . . . . . . . . . . . . . . . 8 Heaviest Build 234 | 12 54 52 104 104 109 107 113 119 102 20 31 42 51 83 70 69 58 75 73 70 67 74 72 79 77 78 82 200 180 179 169 172 234 103 134 Greatest Support 200 | 40 40 40 60 60 64 64 62 60 36 20 68 52 68 96 80 80 80 80 80 80 80 80 80 80 80 80 80 150 150 150 155 155 200 200 60 Greatest Overweight (x) 35 | . 1 1 1 1 1 1 4 4 2 6 1 . 1 1 . . . . . . . 1 . . . . 1 4 1 5 5 1 1 7 35 Average Overweight (x) . | . . 1 . 1 1 1 1 2 . 1 . . . . . . . . . . . . . . . . . . 1 4 4 1 . . 2 Largest Inventory Capacity 30 | 8 20 20 25 25 25 25 25 25 25 5 5 5 20 15 15 15 15 15 15 15 15 15 15 15 15 15 15 30 30 30 30 30 30 25 25 Average Capacity 19 | 7 18 20 24 25 25 25 25 25 6 5 5 5 10 9 15 15 15 15 15 15 15 15 15 15 15 15 15 21 30 30 30 30 27 25 24 Most Carried 30 | 8 20 20 25 25 25 25 25 25 25 5 5 5 15 15 15 15 15 15 15 15 15 15 15 15 15 15 15 30 30 30 30 30 30 25 25 Average Carried 19 | 6 16 19 24 24 24 24 24 24 5 4 4 4 9 9 13 14 12 14 14 12 14 13 14 14 14 15 14 21 27 29 28 29 26 24 23 Final Capacity 30 | 8 20 20 25 25 25 25 25 25 5 5 5 5 15 15 15 15 15 15 15 15 15 15 15 15 15 15 15 30 30 30 30 30 25 25 5 Final Carried 30 | 8 20 20 25 25 25 25 24 25 5 5 5 5 15 15 12 15 10 15 14 13 15 15 15 15 15 15 15 30 30 30 30 27 25 25 5 Class Distribution -------------------- 19% | Botlord-Tank 18% | Commander-Gunner 11% | Commander-Tank 10% | Tank 9% | Botlord-Gunner 7% | Mutant 6% | Botlord-Mutant 3% | Scavenger-Gunner 3% | Gunner 3% | Bothacker-Gunner Dominant Class ---------------- Mutant | -10/Materials Mutant | -10/Mines Tank | -9/Materials Tank | -9/Mines Tank | -8/Materials Scavenger-Gunner | -8/Garrison Scavenger-Gunner | -8/Materials Commander-Gunner | -8/Garrison Commander-Sprinter | -7/Factory Commander-Gunner | -7/Waste Commander-Sprinter | -7/Factory Gunner | -7/Garrison Bothacker-Gunner | -7/Factory Gunner | -7/Garrison Botlord-Gunner | -6/Factory Botlord-Gunner | -6/Garrison Botlord-Gunner | -5/Factory Commander-Gunner | -5/Garrison Commander-Gunner | -5/Factory Commander-Gunner | -5/Extension Commander-Gunner | -5/Cetus Commander-Gunner | -5/Archives Commander-Gunner | -5/Hub_04(d) Commander-Tank | -5/Garrison Commander-Tank | -4/Factory Botlord-Tank | -4/Waste Commander-Tank | -4/Factory Botlord-Tank | -4/Garrison Botlord-Tank | -3/Research Botlord-Tank | -3/Garrison Botlord-Tank | -2/Research Botlord-Mutant | -2/Quarantine Botlord-Mutant | -2/Protoforge Botlord-Tank | -2/Garrison Botlord-Gunner | -1/Access Resources | -11 -10 -10 -9 -9 -8 -8 -8 -8 -7 -7 -7 -7 -7 -7 -6 -6 -5 -5 -5 -5 -5 -5 -5 -5 -4 -4 -4 -4 -3 -3 -2 -2 -2 -2 -1 ----------- Run | Yrd Mat Min Mat Min Mat Gar Mat Gar Fac Was Fac Gar Fac Gar Fac Gar Fac Gar Fac Ext Cet Arc Hub Gar Fac Was Fac Gar Res Gar Res Qua Frg Gar Acc Matter Collected 35881 | 270 299 188 1403 27 591 598 1958 1700 962 89 1000 321 97 640 . 888 101 774 277 527 149 170 40 496 . 170 1504 711 264 1925 588 228 7224 2435 7267 Remotely 7777 | . . . . . . . . . . . . . . . . 68 73 . . . . . . . . . 224 . . . 476 . 1772 432 4732 Salvage Created 28439 | 204 570 362 1891 59 958 693 2000 1680 696 . 878 643 100 1111 . 532 . 455 80 585 365 72 155 1218 . 508 601 1139 . 785 121 . 3577 2211 4190 Parts 1426 | 21 27 33 96 6 58 43 108 90 40 . 63 21 5 50 . 29 . 31 8 39 11 5 3 61 . 7 26 43 . 40 7 . 171 81 203 Haulers Intercepted 10 | . 2 . 4 . 2 . 1 . . . . . . . . . . . . . . . . . . . . . . . . . . . 1 Recyclers Shooed 6 | . . . 2 . . . 2 . . . . . . . . . . . . . . . . . . . . . . . . . . . 2 Parts Field Recycled . | . . . . . . . . . . . . . . . . . . . . . . . . . . . . . . . . . . . . Retrieved Matter . | . . . . . . . . . . . . . . . . . . . . . . . . . . . . . . . . . . . . Parts Self-Destructed . | . . . . . . . . . . . . . . . . . . . . . . . . . . . . . . . . . . . . Prevented . | . . . . . . . . . . . . . . . . . . . . . . . . . . . . . . . . . . . . Kills | -11 -10 -10 -9 -9 -8 -8 -8 -8 -7 -7 -7 -7 -7 -7 -6 -6 -5 -5 -5 -5 -5 -5 -5 -5 -4 -4 -4 -4 -3 -3 -2 -2 -2 -2 -1 ------- Run | Yrd Mat Min Mat Min Mat Gar Mat Gar Fac Was Fac Gar Fac Gar Fac Gar Fac Gar Fac Ext Cet Arc Hub Gar Fac Was Fac Gar Res Gar Res Qua Frg Gar Acc Combat Hostiles Destroyed 512 | . 11 19 33 1 13 21 37 33 15 . 17 13 4 25 . 15 . 12 1 6 3 . 2 21 . 2 9 5 . 12 1 . 65 26 90 Melee 4 | . . . . . . . . . . . . . . . . . . . . . . . . . . . . . . . . . 2 . 2 Guns 231 | . 4 19 22 1 13 21 36 20 15 . 14 13 1 . . . . . . . . . . . . . 1 1 . 12 . . 7 17 14 Cannons 176 | . 4 . 11 . . . 1 10 . . . . 3 20 . 8 . 7 1 6 . . 2 20 . . 6 4 . . 1 . 40 7 25 AOE 86 | . 3 . . . . . . 3 . . 2 . . 2 . 7 . 5 . . 1 . . . . . 2 . . . . . 10 2 49 Classes Destroyed 33 | 2 4 2 4 1 1 2 . 2 1 . 1 . . . . . . 1 1 . . . . . . 1 . . . 2 . . 5 1 2 Worker 16 | . . . 2 . 1 . 2 . 1 . 3 . . . . . . . . . . . . . . . . . . . . . . . 7 Builder 16 | . . . 1 . 1 . 2 . 1 . 2 . . . . . . . . 1 . . . . . . . . . . . . . . 8 Tunneler 11 | 8 . . 1 . 1 . 1 . . . . . . . . . . . . . . . . . . . . . . . . . . . . Hauler 10 | . 2 . 4 . 2 . 1 . . . . . . . . . . . . . . . . . . . . . . . . . . . 1 Recycler 17 | 1 1 1 3 . 1 . 2 . . . 2 . . . . . . . . . . . . . . . . . . . . . . . 6 Mechanic 3 | . . . . . . . . . . . . . . . . . . . . . . . . . . . . . . . . . 1 . 2 Operator 5 | . . . 1 . . . . . . . . . . . . . . . . . . 2 . . . . 1 . . . . . . . 1 Drone 5 | . . . . . . . . . . . . . . . . . . . . . . . . . . . . . . 2 . . 3 . . Watcher 18 | . 2 . 5 . 2 . 3 . . . . . . . . . . . . . 1 . . . . . . . . . . . . . 5 Swarmer 112 | . 3 14 4 . . 9 6 8 6 . 4 4 3 7 . 8 . 8 . . . . . 8 . . . . . . . . 5 . 15 Cutter 8 | . . . . . . 2 . . . . . . . . . . . . . . . . . . . . . 1 . . . . . 5 . Saboteur 6 | . . . . . . . . . . . . . . . . . . . . . . . . . . . . . . . . . . . 6 Grunt 132 | . 8 3 18 1 7 5 18 13 5 . 1 5 . 15 . 3 . 1 . 1 . . 1 4 . . . 2 . 2 1 . 2 4 12 Brawler 5 | . . . 1 . . . . . . . . . . . . . . . . . . . . 2 . . . . . . . . 2 . . Duelist 5 | . . . . . . . . . 1 . . . . . . . . . . . . . . . . . 1 . . . . . 1 . 2 Protector 4 | . . . . . . . . . . . 1 . . . . . . . . . . . . . . . . . . . . . . . 3 Researcher 2 | . . . . . . . . . . . . . . . . . . . . . . . . . . . . . . . . . 2 . . Sentry 61 | . . 1 10 . 4 2 11 6 2 . 3 3 . . . . . 1 . 2 . . 1 2 . . 1 . . . . . 7 4 1 Demolisher 4 | . . . . . . 1 1 . . . . . . . . . . . . 1 . . . . . . 1 . . . . . . . . Specialist 6 | . . . . . . . . 1 . . 3 . . . . . . . . 1 . . . . . . . 1 . . . . . . . Hunter 38 | . . . . . 2 2 1 2 . . 3 . . . . 1 . . . 1 . . . . . . 2 1 . . . . 4 5 14 Programmer 71 | . . . . . . . . 3 1 . 2 2 1 3 . 4 . 2 . 1 . . . 7 . . 5 2 . 6 1 . 16 3 12 Heavy 3 | . . . . . . . . . . . . . . . . . . . 1 . . . . . . . . . . . . . . . 2 Q-Series 1 | . . . . . . . . . . . . . . . . . . . . . . . . . . . . . . 1 . . . . . Behemoth 4 | . . . . . . . . . . . . . . . . . . 1 . 1 . . . . . . . . . . . . . 1 1 Compactor 2 | . . . . . . . . . . . . . . . . . . . . . . . . . . 2 . . . . . . . . . Cetus Guard 3 | . . . . . . . . . . . . . . . . . . . . . 3 . . . . . . . . . . . . . . Hotshot 7 | . . . . . . . . . . . . . . . . . . . . . . . . . . . . . . . . . 7 . . Decapitator 5 | . . . . . . . . . . . . . . . . . . . . . . . . . . . . . . . . . 5 . . Immortal 1 | . . . . . . . . . . . . . . . . . . . . . . . . . . . . . . . . . 1 . . Investigator 1 | . . . . . . . . . . . . . . . . . . . . . . . . . . . . . . . . . . . 1 Striker 20 | . . . . . . . . . . . . . . . . . . . . . . . . . . . . . . . . . . 5 15 Executioner 10 | . . . . . . . . . . . . . . . . . . . . . . . . . . . . . . . . . . . 10 Alpha 7 2 | . . . . . . . . . . . . . . . . . . . . . . . . . . . . . . . . . 2 . . V-Series 11 | . . . . . . . . . . . . . . . . . . . . . . . . . . . . . . . . . 11 . . Zionite 1 | . . . . 1 . . . . . . . . . . . . . . . . . . . . . . . . . . . . . . . Tinkerer 1 | . . . . . . . . . . . . . . . . . . . . . . . . . . . . . . . . . 1 . . Assembled 1 | . . 1 . . . . . . . . . . . . . . . . . . . . . . . . . . . . . . . . . Thug 1 | . . . . . . . . . . . . . . . . . . . . . . . . . . . . . . 1 . . . . . Savage 4 | . . . . . . . . . . . . . . . . . . . . . 1 . . 2 . . . . . 1 . . . . . Butcher 1 | . . . . . . . . . . . . . . . . . . . . . 1 . . . . . . . . . . . . . . Guerrilla 1 | . . . . . . . . . . . . 1 . . . . . . . . . . . . . . . . . . . . . . . Infiltrator 1 | . . . . . . . . . . . . . . . . . . . . . . . . . . . . . . 1 . . . . . Best Kill Streak 30 | 3 3 3 4 1 5 4 7 8 5 . 6 3 3 5 . 5 . 4 1 2 3 1 1 3 . 1 2 2 . 4 1 . 5 3 30 Combat Bots Only 22 | . 3 3 4 1 3 4 5 8 4 . 4 3 3 5 . 5 . 4 1 1 3 . 1 3 . 1 2 2 . 4 1 . 5 3 22 Max Kills in Single Turn 5 | 2 2 2 2 1 2 2 2 3 3 . 4 1 1 1 . 3 . 3 1 1 1 1 1 2 . 1 1 1 . 1 1 . 3 2 5 Gunslinging 1 | . . 1 . . . 1 . 1 1 . 1 . . . . . . . . . . . . . . . . . . . . . . 1 . Exploded 5 | . 2 . . . . . . 3 . . 2 . . 1 . 3 . 3 . . 1 . . . . . 1 . . . . . 3 2 5 Melee 1 | . . . . . . . . . . . . . . . . . . . . . . . . . . . . . . . . . 1 . 1 Uniques/NPCs Destroyed . | . . . . . . . . . . . . . . . . . . . . . . . . . . . . . . . . . . . . Combat | -11 -10 -10 -9 -9 -8 -8 -8 -8 -7 -7 -7 -7 -7 -7 -6 -6 -5 -5 -5 -5 -5 -5 -5 -5 -4 -4 -4 -4 -3 -3 -2 -2 -2 -2 -1 -------- Run | Yrd Mat Min Mat Min Mat Gar Mat Gar Fac Was Fac Gar Fac Gar Fac Gar Fac Gar Fac Ext Cet Arc Hub Gar Fac Was Fac Gar Res Gar Res Qua Frg Gar Acc Hostile Shots Fired 2713 | . 29 47 112 4 65 108 148 141 46 . 176 59 49 93 1 57 4 62 3 24 16 4 2 38 . . 53 25 3 128 9 5 450 124 628 Missed 823 | . 6 12 38 2 14 24 35 46 24 . 79 28 29 26 1 17 2 19 1 7 4 1 . 10 . . 18 11 . 19 4 3 122 20 201 Hits 1890 | . 23 35 74 2 51 84 113 95 22 . 97 31 20 67 . 40 2 43 2 17 12 3 2 28 . . 35 14 3 109 5 2 328 104 427 Melee 62 | . . . . . . 6 . . 3 . . . . . . . . 7 . . . . . . . . . . . . . . 22 10 14 Projectile 1828 | . 23 35 74 2 51 78 113 95 19 . 97 31 20 67 . 40 2 36 2 17 12 3 2 28 . . 35 14 3 109 5 2 306 94 413 AOE 33 | . . . . . . 4 2 . . . . . . . . 2 . 5 . 2 . . . . . . 1 . . 2 . . 8 2 5 Critical Strikes 117 | . 1 . 3 . 3 3 5 7 3 . 1 2 1 1 . 1 1 5 . . . . . 2 . . 2 2 . 10 1 1 36 6 20 Actively Blocked 27 | . . . . . . . . 1 . . . . . . . . . . . . . . . . . . . . . . . . 7 6 13 Part Disruptions 8 | . . . . . . . . . . . . . . . . . . . . . . . . . . . 1 . . 2 . . 4 . 1 Damage Taken 42853 | . 345 309 921 29 669 1094 1785 1398 283 . 1425 343 310 1031 . 689 61 1091 279 420 275 71 43 543 . . 956 651 53 2701 281 150 10693 3262 10692 Core 5294 | . 46 87 212 . 66 162 53 179 59 . 302 22 113 171 . 141 18 74 79 19 29 21 . 71 . . 164 89 7 352 . . 876 319 1563 Absorbed by Shields 1301 | . . . . . 145 . . 4 52 . . . . 66 . . . 61 . 167 41 . . . . . 49 . 29 . . . 483 . 204 Reduced by Siege Mode 542 | . . . . . . . . . . . . . . . . . . . . . . . . . . . . . . . . . 232 87 223 Redirected to Shielding 492 | . . . . . . . 17 27 . . 47 105 . . . . . . . . . . . . . . . . . . . . 285 . 11 Ignored by Resistances 2141 | . . . . . . . . . . . . . . . . . . . . . . . . . . . . . . . . . 248 244 1649 Regen/Repaired (Parts) 9572 | . 110 . 196 . . . 49 148 98 16 310 . 37 . . . . 840 . 492 130 75 23 375 . . 169 . . . 37 10 2174 925 3358 Core Remaining (%) 53 | 100 . 46 . 47 . . . 16 . . . . . 4 . 83 . . . . . . . 68 . . . 78 . 72 . . . 17 . Volleys Fired 2617 | 26 38 39 104 3 40 61 90 113 42 1 54 45 41 73 27 96 23 161 52 96 36 41 2 152 4 23 142 166 26 103 41 18 322 96 220 Largest 4 | 2 2 2 3 3 4 4 4 4 4 1 4 3 4 4 1 4 1 4 4 3 2 3 3 4 1 3 4 3 3 4 2 1 4 4 4 Hottest 348 | 90 130 130 180 69 92 100 154 225 100 25 100 280 280 210 40 193 5 193 153 120 80 120 120 155 7 120 155 163 105 185 86 51 348 154 228 Shots Fired 4781 | 52 73 66 312 9 160 160 359 353 117 1 151 82 53 150 27 131 23 202 61 132 39 47 6 232 4 55 180 200 28 192 45 18 444 209 408 Gun 2136 | 52 30 54 188 9 160 140 352 282 101 1 130 59 9 . . 2 . 9 3 2 . . . 3 . . 2 13 2 144 2 . 101 157 129 Cannon 1711 | . 40 . 124 . . . 7 67 . . . 10 29 127 9 86 . 123 36 70 27 47 6 205 . 47 63 136 1 6 5 1 239 31 169 Launcher 108 | . 3 . . . . . . 2 . . . . . 9 . 4 . 2 2 1 10 . . . . . . . . . . . 12 2 61 Special 826 | . . 12 . . . 20 . 2 16 . 21 13 15 14 18 39 23 68 20 59 2 . . 24 4 8 115 51 25 42 38 17 92 19 49 Kinetic 2424 | . 8 . 299 9 160 140 352 282 101 1 130 . 4 . . 2 . 9 3 2 . . . 3 . . 2 7 2 115 7 1 299 188 298 Thermal 1455 | 52 62 66 13 . . 20 7 67 . . . 69 34 127 9 86 . 123 36 70 27 47 6 205 . 47 63 142 1 35 . . 41 . . Explosive 84 | . 3 . . . . . . 2 . . . . . . . 4 . 2 2 1 . . . . . . . . . . . . 7 2 61 Electromagnetic 24 | . . . . . . . . . . . . . . 9 . . . . . . 10 . . . . . . . . . . . 5 . . Robot Hit Streak 59 | 6 11 10 17 2 17 13 11 21 12 5 9 19 8 12 14 9 17 11 15 21 6 2 5 9 9 12 11 24 26 28 16 7 49 32 59 Robot Miss Streak 12 | 3 6 8 8 3 2 4 4 5 4 . 4 4 4 2 1 2 1 6 3 3 2 3 1 3 . 2 5 2 3 4 4 2 8 12 8 Penetration Max 2 | . . . . . . . 1 . . . . . . . . . . . . . . . . . . . . . . 1 . . 2 1 2 Secondary Targets 45 | . 1 3 2 . 3 8 9 8 4 . 2 . . . . . . . . . . . . . . . . . . 1 . . . 3 1 Max Gunslinging Chain 2 | . 1 1 1 . 1 1 1 2 1 . 1 . . . . . . . . . . . . . . . . . . 1 . . . 1 1 Shots Hit Robots 2879 | 31 51 45 180 4 107 79 242 200 71 1 87 61 22 63 17 63 20 73 25 83 9 24 17 99 4 37 107 93 21 122 34 14 324 161 288 Core Hits 1221 | 10 26 60 72 2 41 39 84 74 31 . 40 46 6 27 . 21 . 16 5 22 15 3 4 31 . 5 14 28 . 31 2 . 136 68 262 Critical Kills 58 | . . . . . . . 2 . . . . . . . . . . . . . . 1 . 1 . 2 1 2 . 2 . . 17 10 20 Critical Parts Destroyed 54 | . . . 1 . . . . 3 . . 1 . . . . . . . . . . . . . . . 1 . . 1 . . 21 11 15 Critical Strikes 140 | 1 1 . 3 . . . 2 3 . . 1 . . . . . . . . . . 1 . 1 . 2 2 2 . 3 . . 51 30 37 Burn 2 | 1 1 . . . . . . . . . . . . . . . . . . . . . . . . . . . . . . . . . . Meltdown 8 | . . . . . . . . . . . . . . . . . . . . . . 1 . 1 . 2 . 2 . . . . 2 . . Destroy 114 | . . . 1 . . . 2 3 . . . . . . . . . . . . . . . . . . 2 . . 3 . . 41 26 36 Blast 9 | . . . 2 . . . . . . . . . . . . . . . . . . . . . . . . . . . . . 5 1 1 Smash 1 | . . . . . . . . . . . 1 . . . . . . . . . . . . . . . . . . . . . . . . Sever 1 | . . . . . . . . . . . . . . . . . . . . . . . . . . . . . . . . . 1 . . Impale 5 | . . . . . . . . . . . . . . . . . . . . . . . . . . . . . . . . . 2 3 . Melee Attacks 140 | . . . . . . . 30 3 8 . 10 11 . . . . . . . . . 16 13 13 . . . . . . . 6 22 8 . Impact 32 | . . . . . . . . 3 8 . 10 11 . . . . . . . . . . . . . . . . . . . . . . . Slashing 19 | . . . . . . . . . . . . . . . . . . . . . . . . . . . . . . . . 6 13 . . Piercing 17 | . . . . . . . . . . . . . . . . . . . . . . . . . . . . . . . . . 9 8 . Sneak Attacks 65 | . . . . . . . 24 . . . 3 . . . . . . . . . . 16 8 11 . . . . . . . 1 2 . . Combat Hostiles . | . . . . . . . . . . . . . . . . . . . . . . . . . . . . . . . . . . . . Follow-up Attacks . | . . . . . . . . . . . . . . . . . . . . . . . . . . . . . . . . . . . . Damage Inflicted 90192 | 365 969 559 3060 63 1584 1222 4229 3920 1058 15 2790 1449 409 2323 . 2104 . 1781 351 1563 1366 325 179 2816 . 1417 1308 2008 68 2076 151 132 14484 6029 28019 Guns 29257 | 356 268 559 1906 60 1545 1222 3812 2697 1058 15 1170 1302 227 . . . . 110 49 39 . . . 62 . . 61 146 30 1940 23 . 3007 4135 3458 Cannons 30841 | . 511 . 1101 . . . 156 883 . . . 96 182 1839 . 1303 . 1303 220 1359 183 325 179 2754 . 1417 949 1862 38 136 128 . 8629 329 4959 Explosions 28406 | . 184 . . . . . 233 340 . . 1075 . . 484 . 801 . 368 82 165 1183 . . . . . 294 . . . . . 2489 1106 19602 Melee 1519 | . . . . . . . . . . . 545 51 . . . . . . . . . . . . . . . . . . . 132 332 459 . Ramming 169 | 9 6 . 53 3 39 . 28 . . . . . . . . . . . . . . . . . . . 4 . . . . . 27 . . Kinetic 39089 | . 112 . 2867 60 1545 1222 3812 2697 1058 15 1170 . 38 . . . . 110 49 39 . . . 62 . . 61 82 30 1551 151 . 9477 4464 8417 Thermal 22834 | 356 667 559 140 . . . 389 883 . . 1075 1398 371 1839 . 1303 . 1303 264 1359 603 325 179 2754 . 1417 949 1926 38 525 . . 2212 . . Explosive 24428 | . 184 . . . . . . 340 . . . . . . . 801 . 368 38 165 . . . . . . 294 . . . . . 1621 1106 19511 Electromagnetic 2153 | . . . . . . . . . . . . . . 484 . . . . . . 763 . . . . . . . . . . . 815 . 91 Impact 596 | . . . . . . . . . . . 545 51 . . . . . . . . . . . . . . . . . . . . . . . Slashing 271 | . . . . . . . . . . . . . . . . . . . . . . . . . . . . . . . . 132 139 . . Piercing 652 | . . . . . . . . . . . . . . . . . . . . . . . . . . . . . . . . . 193 459 . Highest Corruption 56 | . . . . . . . . 2 . . . 1 5 6 . . . 3 3 4 4 4 . 9 . 32 32 6 . 18 4 4 54 56 23 Average Corruption 11 | . . . . . . . . 1 . . . 1 2 5 . . . 3 3 3 4 2 . 3 . 20 12 6 . 13 3 4 23 54 4 Corruption Purged 31 | . . . . . . . . . . . . . . . . . . . . . . 4 . . . . 27 . . . . . . . . Corruption Blocked . | . . . . . . . . . . . . . . . . . . . . . . . . . . . . . . . . . . . . Effects 998 | . . . . . . . . 33 . . . 6 9 64 . . . 47 14 18 15 2 . 80 . 13 77 99 . 99 7 25 263 111 16 Message Errors 234 | . . . . . . . . 10 . . . 1 2 12 . . . 13 1 5 2 . . 17 . 4 21 22 . 23 1 9 59 28 4 Matter Fused 206 | . . . . . . . . 4 . . . 2 3 17 . . . 8 5 2 2 . . 17 . 1 11 23 . 26 2 5 55 18 5 Heat Flow Errors 116 | . . . . . . . . 3 . . . 1 . 7 . . . 5 3 3 . . . 15 . 1 10 14 . 7 1 3 33 10 . Energy Discharges 121 | . . . . . . . . 6 . . . 1 2 5 . . . 4 3 1 2 . . 10 . 1 10 19 . 11 . 2 32 9 3 Parts Rejected 12 | . . . . . . . . . . . . . . . . . . . . . . . . 1 . . 2 . . 3 . . 5 1 . Parts Fused 12 | . . . . . . . . 2 . . . . . 1 . . . . . . 1 . . 2 . . 1 . . 2 . . 2 1 . Data Loss (minor) 119 | . . . . . . . . 3 . . . . 2 11 . . . 5 2 4 3 1 . 7 . 2 6 9 . 11 1 4 34 13 1 Data Loss (major) 52 | . . . . . . . . 1 . . . . . 7 . . . 5 . . . . . 5 . . 6 6 . 6 . 1 11 4 . Misfires 49 | . . . . . . . . 3 . . . 1 . 2 . . . 5 . 2 3 . . 3 . 2 5 4 . 5 2 . 8 4 . Alerts 21 | . . . . . . . . . . . . . . . . . . 1 . . 1 1 . 3 . 2 1 1 . 3 . 1 4 2 1 Misdirections 10 | . . . . . . . . . . . . . . . . . . . . . . . . . . . 3 . . . . . 4 3 . Weapon Failures 46 | . . . . . . . . 1 . . . . . 2 . . . 1 . 1 1 . . . . . 1 1 . 2 . . 16 18 2 Overload Shots 5 | . . . . . . . . . . . . . . . . 1 . 1 1 2 . . . . . . . . . . . . . . . Overflow Damage 2936 | . 14 . 21 . 10 . 65 46 . . 313 . 38 45 . 192 . 79 7 2 18 33 . 21 . . 36 . . . . 62 792 133 1009 Projectiles 1197 | . . . 21 . . . . . . . . . 38 45 . 80 . 76 7 . . 33 . 21 . . 36 . . . . . 766 . 74 Explosions 1298 | . 14 . . . . . 65 46 . . 73 . . . . 112 . 3 . 2 18 . . . . . . . . . . . 26 4 935 Melee 441 | . . . . . 10 . . . . . 240 . . . . . . . . . . . . . . . . . . . . 62 . 129 . Knockbacks 97 | . . . 8 . . . . . . . 2 1 . . . . . . . . . . . . . . . . . . 1 . 52 2 31 Impact 3 | . . . . . . . . . . . 2 1 . . . . . . . . . . . . . . . . . . . . . . . Kinetic 91 | . . . 8 . . . . . . . . . . . . . . . . . . . . . . . . . . . 1 . 52 2 28 Secondary 3 | . . . . . . . . . . . . . . . . . . . . . . . . . . . . . . . . . . . 3 Self-Inflicted Damage 849 | . 32 . . . . . 157 56 . . . . . . . 25 . . 70 . . . . . . . . . . . . . 274 58 177 Shots 18 | . 1 . . . . . 2 1 . . . . . . . 1 . . 1 . . . . . . . . . . . . . 7 1 4 Rammed 27 | 4 2 . 9 1 4 . 4 . . . . . . . . . . . . . . . . . . . . . . . . . 3 . . Targets Rammed 28 | 4 2 . 9 1 4 . 4 . . . . . . . . . . . . . . . . . . . 1 . . . . . 3 . . Kicked 1 | . . . . . . . . . . . . . . . . . . . . . . . . . . . 1 . . . . . . . . Crushed . | . . . . . . . . . . . . . . . . . . . . . . . . . . . . . . . . . . . . Highest Temperature 477 | 120 404 117 477 15 96 33 433 398 184 . 466 408 387 386 . 282 . 237 214 270 20 24 24 264 . 154 237 264 . 325 256 154 290 280 333 Average Temperature 82 | 34 126 48 78 10 25 10 85 124 69 . 126 107 107 95 . 88 . 104 73 52 13 16 16 70 . 42 51 66 . 89 125 63 78 79 89 Received Heat Transfer 5325 | . 129 48 402 18 287 117 621 558 119 . 111 78 27 385 . 57 18 120 12 49 4 9 9 90 . . 112 54 . 87 36 9 1111 369 279 Effects 25 | . 3 . 9 . . . 1 1 . . 2 3 . . . . . . . . . . . . . . . . . 1 . . . 3 2 Shutdowns 6 | . 1 . 3 . . . 1 . . . 1 . . . . . . . . . . . . . . . . . . . . . . . . Energy Bleed 5 | . . . 2 . . . . 1 . . 1 1 . . . . . . . . . . . . . . . . . . . . . . . Interference 7 | . 2 . . . . . . . . . . . . . . . . . . . . . . . . . . . . . . . . 3 2 Short Circuit 2 | . . . 2 . . . . . . . . . . . . . . . . . . . . . . . . . . . . . . . . Damage (minor) 5 | . . . 2 . . . . . . . . 2 . . . . . . . . . . . . . . . . . 1 . . . . . Siege Activations 5 | . . . . . . . . . . . . . . . . . . . . . . . . . . . . . . . . . 3 1 1 Total Turns 113 | . . . . . . . . . . . . . . . . . . . . . . . . . . . . . . . . . 65 27 21 Longest Duration 33 | . . . . . . . . . . . . . . . . . . . . . . . . . . . . . . . . . 33 27 21 Martial Activations . | . . . . . . . . . . . . . . . . . . . . . . . . . . . . . . . . . . . . Shielding Activations . | . . . . . . . . . . . . . . . . . . . . . . . . . . . . . . . . . . . . Robots Disrupted . | . . . . . . . . . . . . . . . . . . . . . . . . . . . . . . . . . . . . Combat Hostiles . | . . . . . . . . . . . . . . . . . . . . . . . . . . . . . . . . . . . . Robots Corrupted 9 | . . . . . 1 . . . . . 1 . . 3 . . . . . . 2 . . . . . . . . . . . 2 . . Combat Hostiles 8 | . . . . . . . . . . . 1 . . 3 . . . . . . 2 . . . . . . . . . . . 2 . . Parts Fried 11 | . . . . . 2 . . . . . 1 . . . . . . . . . 2 . . . . . 2 . . 1 . . 2 . 1 Impact Corruptions 5 | . . . . . 1 . . . . . 4 . . . . . . . . . . . . . . . . . . . . . . . . Robots Melted 9 | . . . . . . . . . . . . . . . . . . . . . . 1 . 2 . 2 . 2 . . . . 2 . . Combat Hostiles 5 | . . . . . . . . . . . . . . . . . . . . . . . . 1 . 2 . . . . . . 2 . . Parts Melted 49 | 1 1 . . 1 1 . . . 1 . . 10 1 2 . 2 . 3 1 2 . 1 . 3 . 3 . 7 . . . . 9 . . Heat Transferred 25029 | 1016 1516 690 296 . . . 335 1231 . . 675 2475 525 1891 . 1252 . 1258 322 1256 361 333 185 2605 . 1480 925 1961 18 1048 . . 1375 . . Parts Sabotaged 7 | . . . . . . . . . . . . . . . . . . . . . . . . . . . . . . . . . . . 7 Parts Stolen . | . . . . . . . . . . . . . . . . . . . . . . . . . . . . . . . . . . . . Parts Stripped . | . . . . . . . . . . . . . . . . . . . . . . . . . . . . . . . . . . . . Power Chain Reactions 5 | . . . . . . . . . . . . . 1 . . . . . . . 2 . . . . . . . . . . . 2 . . Alert | -11 -10 -10 -9 -9 -8 -8 -8 -8 -7 -7 -7 -7 -7 -7 -6 -6 -5 -5 -5 -5 -5 -5 -5 -5 -4 -4 -4 -4 -3 -3 -2 -2 -2 -2 -1 ------- Run | Yrd Mat Min Mat Min Mat Gar Mat Gar Fac Was Fac Gar Fac Gar Fac Gar Fac Gar Fac Ext Cet Arc Hub Gar Fac Was Fac Gar Res Gar Res Qua Frg Gar Acc Maximum Alert Level 5 | . . . 2 . . 4 2 5 4 2 2 4 2 5 3 5 3 5 5 3 2 1 . 5 5 2 4 5 4 5 3 2 5 5 5 Low Security (%) 29 | 100 100 100 55 100 100 12 40 . . 56 80 . . . . . . . . . . 94 100 12 . . . . . . . 63 47 . . Level 1 8 | . . . 34 . . 13 24 8 . 39 13 3 . . . . . . . . 42 5 . 5 . . 29 . . . . 26 9 . . Level 2 13 | . . . 9 . . 41 35 9 . 3 5 14 100 5 . 21 10 8 . 80 58 . . 6 . 100 10 3 . 25 . 10 9 . . Level 3 15 | . . . . . . 30 . 19 38 . . 53 . 15 100 15 89 2 . 19 . . . 9 . . 47 48 70 30 100 . 12 . . Level 4 16 | . . . . . . 2 . 31 61 . . 28 . 31 . 46 . 35 38 . . . . 14 . . 11 21 29 31 . . 18 32 45 Level 5 16 | . . . . . . . . 31 . . . . . 47 . 16 . 54 61 . . . . 51 100 . . 27 . 12 . . . 67 2 High Security 1 | . . . . . . . . . . . . . . . . . . . . . . . . . . . . . . . . . 1 . 51 Max Security . | . . . . . . . . . . . . . . . . . . . . . . . . . . . . . . . . . . . . Peak Influence 3648 | 10 142 138 474 184 163 1129 619 2349 1232 412 506 1140 699 1998 1048 2020 1060 3648 1915 869 501 260 147 3437 1803 605 1350 2258 1269 1841 1035 447 1642 2256 3543 Initial 1915 | . . 13 . 184 . 84 549 269 1232 412 . 310 598 483 1048 598 1060 477 1915 689 467 150 1 . 1803 605 296 683 1269 633 1035 447 . 1209 1353 Average 853 | 1 30 32 191 28 57 577 273 1324 1115 184 124 918 606 1405 956 1173 808 1988 1683 607 416 39 33 1632 1749 519 750 1245 1012 1056 895 136 490 1767 2072 Influence Increases 36512 | 45 426 420 1117 54 498 1085 1188 2190 416 . 980 920 467 1525 21 1672 77 3381 457 1296 424 215 295 3627 67 16 2073 1775 304 1798 244 51 2617 1377 3394 Destroy 0b10 Robot/C 11840 | . 220 360 660 40 280 420 740 740 300 . 360 420 80 540 . 340 20 380 80 460 160 40 100 440 20 . 500 100 60 380 20 . 1280 520 1780 Destroy 0b10 Robot/NC 640 | 45 25 5 85 . 45 . 55 20 10 . 50 10 . . . . 5 . 5 15 10 10 . . . . 15 30 . . . . 25 15 160 Destroy Leader 1758 | . 48 40 198 10 100 20 208 50 60 . 92 40 20 40 . 20 2 10 32 54 . . 30 40 . . 102 . 10 30 10 . 110 70 312 Allied During Kill 3376 | . . . . 4 6 . . 26 38 . 26 26 4 23 . 37 20 266 117 523 170 50 130 445 20 . 574 43 70 337 22 . 213 88 98 Trap Triggered on 0b10 90 | . . . . . 10 . . . . . . . . . . . . . . . . . 10 . . . 70 . . . . . . . . Successful Hack 398 | . 41 . 63 . 24 30 18 7 . . 5 14 26 14 13 . . 48 . 52 . . 15 . 8 . 6 . . 14 . . . . . Select Force Hacks 140 | . 30 . 60 . . . . . . . . . 50 . . . . . . . . . . . . . . . . . . . . . . Disable Machine 1635 | . 15 . 15 . 30 . 90 60 . . 150 30 . 45 . 15 30 . 45 60 . 45 . 60 15 . 180 . . 60 15 45 465 30 135 Anti-Garrison Action 12000 | . . . . . . 550 . 1200 . . . 250 . 650 . 1100 . 2450 . . . . . 2400 . . 300 1450 150 950 150 . . 400 . Destroy Structure 3435 | . 17 . 6 . 3 20 47 72 8 . 42 40 17 78 8 100 . 212 178 102 84 70 10 227 4 16 326 152 14 27 27 6 449 194 879 Partial Spotted 120 | . . . . . . . . . . . 60 45 15 . . . . . . . . . . . . . . . . . . . . . . Lose Combat Pursuer 1080 | . 30 15 30 . . 45 30 15 . . 195 45 255 135 . 60 . 15 . 30 . . . 15 . . . . . . . . 75 60 30 Influence Decreases 33029 | 45 390 456 643 528 368 86 1903 255 1587 1178 536 224 916 218 1164 507 1415 415 2697 1869 882 587 300 190 1774 1323 1519 494 1717 802 1288 848 1005 733 2167 Entered New Map 16117 | . . 23 . 290 . 46 580 145 1117 766 . 134 542 208 950 257 960 205 1733 719 368 227 4 . 1634 1125 127 294 989 212 806 350 . 403 903 Time Decay 8825 | 45 390 433 633 238 338 . 697 . 270 412 316 . 334 . 214 . 140 . 334 490 334 360 95 . 140 198 632 . 428 . 342 348 370 . 294 Lost Part 852 | . . . 10 . 10 40 27 70 . . 50 10 . 10 . 10 . 20 10 . 10 . . 10 . . . 30 . 100 . . 85 50 300 Lost Ally 5080 | . . . . . 20 . 40 40 50 . 170 80 40 . . 240 40 190 170 210 170 . 80 180 . . 760 170 300 490 140 . 550 280 670 Purge Threat 2155 | . . . . . . . 559 . 150 . . . . . . . 275 . 450 450 . . 121 . . . . . . . . 150 . . . Squads Dispatched 156 | . 1 . 4 . 6 . 7 . 4 . 4 . 6 . . . 5 . 7 5 . . 3 . 1 . 23 . 7 . 8 2 30 . 33 Investigation 17 | . 1 . 3 . 1 . . . 1 . 1 . 4 . . . . . . 1 . . . . . . 2 . 1 . . . . . 2 Extermination 26 | . . . . . . . . . 1 . 2 . 2 . . . . . 1 . . . . . . . 5 . . . 1 2 11 . 1 Reinforcement 37 | . . . 1 . 1 . 4 . . . 1 . . . . . 2 . 3 2 . . 2 . . . 5 . 6 . 2 . 2 . 6 Assault 51 | . . . . . . . . . 2 . . . . . . . . . 3 2 . . . . 1 . 7 . . . 4 . 8 . 24 Garrison 25 | . . . . . 4 . 3 . . . . . . . . . 3 . . . . . 1 . . . 4 . . . 1 . 9 . . Intercept . | . . . . . . . . . . . . . . . . . . . . . . . . . . . . . . . . . . . . Searches Triggered . | . . . . . . . . . . . . . . . . . . . . . . . . . . . . . . . . . . . . Construction Impeded 5 | . . . . . . . 1 . . . . . . . . . . . . 1 . . . . . . 3 . . . . . . . . Haulers Reinforced 5 | . . . . . . . . . . . . . . . . . . . . . . . . . . . 1 . 2 . 1 . . . 1 Active Scanning Responses . | . . . . . . . . . . . . . . . . . . . . . . . . . . . . . . . . . . . . Cargo Convoy Interrupts 2 | . . . . . . . . . . . 1 . 1 . . . . . . . . . . . . . . . . . . . . . . Alert ID Control Effect 196 | . . . . . . . . . . . . 1 . . . 1 . 11 5 8 . 1 3 10 1 . 25 19 15 16 6 7 55 9 3 Stealth | -11 -10 -10 -9 -9 -8 -8 -8 -8 -7 -7 -7 -7 -7 -7 -6 -6 -5 -5 -5 -5 -5 -5 -5 -5 -4 -4 -4 -4 -3 -3 -2 -2 -2 -2 -1 --------- Run | Yrd Mat Min Mat Min Mat Gar Mat Gar Fac Was Fac Gar Fac Gar Fac Gar Fac Gar Fac Ext Cet Arc Hub Gar Fac Was Fac Gar Res Gar Res Qua Frg Gar Acc Distress Signals 48 | . . . 3 . 5 . 6 . 1 . 4 . 3 . . . . . 3 1 1 . . . . . 3 . 8 . . . 5 . 5 Communications Jammed 153 | . . . . . . . . . . . . . . . . . . . . . . . . . . . . . . . . . . . 153 Distress Signals 153 | . . . . . . . . . . . . . . . . . . . . . . . . . . . . . . . . . . . 153 Times Spotted 1225 | . 21 22 48 1 27 23 53 42 21 . 44 31 41 35 2 29 9 50 9 40 10 10 10 40 4 5 72 38 28 38 22 14 179 43 164 Peak Tracking Total 19 | . 3 3 5 1 6 6 6 6 5 . 10 7 8 7 4 7 3 5 3 9 5 1 2 8 4 2 8 12 5 9 5 3 10 5 19 Tactical Retreats 44 | . 2 1 2 . . 2 1 1 . . 5 3 8 5 . 1 . 1 . 2 . . . 1 . . . . . . . . 4 3 2 Traps | -11 -10 -10 -9 -9 -8 -8 -8 -8 -7 -7 -7 -7 -7 -7 -6 -6 -5 -5 -5 -5 -5 -5 -5 -5 -4 -4 -4 -4 -3 -3 -2 -2 -2 -2 -1 ------- Run | Yrd Mat Min Mat Min Mat Gar Mat Gar Fac Was Fac Gar Fac Gar Fac Gar Fac Gar Fac Ext Cet Arc Hub Gar Fac Was Fac Gar Res Gar Res Qua Frg Gar Acc Traps Triggered 78 | . 2 . . . . 7 . 11 2 . 2 8 3 1 . 4 . 7 . 1 . . . 4 1 . 1 4 . 5 3 1 8 3 . Indirectly . | . . . . . . . . . . . . . . . . . . . . . . . . . . . . . . . . . . . . Trap Hack Attempts 118 | . . . . . 69 . . . . . . . . . . . . . . . . . 15 . . . 34 . . . . . . . . Triggered . | . . . . . . . . . . . . . . . . . . . . . . . . . . . . . . . . . . . . Disarmed 6 | . . . . . . . . . . . . . . . . . . . . 6 . . . . . . . . . . . . . . . Reprogrammed 8 | . . . . . 1 . . . . . . . . . . . . . . . . . 2 . . . 5 . . . . . . . . Reused 4 | . . . . . 1 . . . . . . . . . . . . . . . . . 1 . . . 2 . . . . . . . . Traps Extracted . | . . . . . . . . . . . . . . . . . . . . . . . . . . . . . . . . . . . . Installed . | . . . . . . . . . . . . . . . . . . . . . . . . . . . . . . . . . . . . Triggered 9 | . . . . . 1 . . . . . . . . . . . . . . . . . 1 . . . 7 . . . . . . . . Machines | -11 -10 -10 -9 -9 -8 -8 -8 -8 -7 -7 -7 -7 -7 -7 -6 -6 -5 -5 -5 -5 -5 -5 -5 -5 -4 -4 -4 -4 -3 -3 -2 -2 -2 -2 -1 ---------- Run | Yrd Mat Min Mat Min Mat Gar Mat Gar Fac Was Fac Gar Fac Gar Fac Gar Fac Gar Fac Ext Cet Arc Hub Gar Fac Was Fac Gar Res Gar Res Qua Frg Gar Acc Machines Disabled 172 | . 1 . 1 . 2 3 6 11 . . 10 6 . 8 . 7 2 7 3 5 . 3 . 8 1 . 14 3 1 9 2 3 38 9 9 Max in Single Turn 10 | . 1 . 1 . 1 1 2 2 . . 10 1 . 1 . 1 . 1 1 1 . 1 . 1 1 . 1 1 . 1 1 1 4 1 2 Garrison Access 10 | . . . . . . . . . 2 . . . 2 . . . . . . . . . . . . . 2 . 1 . 2 1 . . . Garrison Relay 47 | . . . . . . 3 . 5 . . . 4 . 5 . 5 . 9 . . . . . 4 . . . 3 . 4 . . . 5 . Phase Generator 2 | . . . . . . . . 1 . . . . . . . . . . . . . . . . . . . . . 1 . . . . . Machines Repaired . | . . . . . . . . . . . . . . . . . . . . . . . . . . . . . . . . . . . . Machines Dismantled 4 | . . . . . . . . . . . . . . . . . . . . . . . . . 1 . . . . 3 . . . . . Machines Sabotaged . | . . . . . . . . . . . . . . . . . . . . . . . . . . . . . . . . . . . . Overloaded Fab Kills 3 | . . . . . . . . . . . . . 3 . . . . . . . . . . . . . . . . . . . . . . Hacking | -11 -10 -10 -9 -9 -8 -8 -8 -8 -7 -7 -7 -7 -7 -7 -6 -6 -5 -5 -5 -5 -5 -5 -5 -5 -4 -4 -4 -4 -3 -3 -2 -2 -2 -2 -1 --------- Run | Yrd Mat Min Mat Min Mat Gar Mat Gar Fac Was Fac Gar Fac Gar Fac Gar Fac Gar Fac Ext Cet Arc Hub Gar Fac Was Fac Gar Res Gar Res Qua Frg Gar Acc Machines Accessed 141 | . 9 . 15 . 3 2 8 3 10 . 7 3 14 1 3 2 4 4 2 15 1 . 5 1 2 . 3 1 3 2 1 5 7 2 3 Terminals 85 | . 7 . 9 . 1 2 5 3 5 . 1 3 5 1 1 2 2 4 1 14 1 . 4 1 . . . 1 . 2 . 3 4 2 1 Fabricators 12 | . . . . . . . . . . . 4 . 2 . . . 1 . 1 . . . . . 1 . 1 . . . . . . . 2 Repair Stations 12 | . 1 . 2 . . . 1 . 1 . 1 . 2 . . . . . . 1 . . . . 1 . . . 1 . . . 1 . . Recycling Units 4 | . 1 . 2 . . . . . . . . . . . 1 . . . . . . . . . . . . . . . . . . . . Scanalyzers 10 | . . . 2 . 1 . 1 . 2 . . . 2 . . . . . . . . . . . . . . . . . . 1 1 . . Garrison Access 18 | . . . . . 1 . 1 . 2 . 1 . 3 . 1 . 1 . . . . . 1 . . . 2 . 2 . 1 1 1 . . Total Hacks 351 | . 36 . 44 . 8 6 33 6 16 . 25 5 25 2 8 7 6 10 14 23 2 . 14 1 6 . 10 4 6 3 1 7 10 8 5 Successful 183 | . 23 . 25 . 4 2 22 2 9 . 12 2 13 1 3 1 2 5 7 14 1 . 9 1 5 . 6 . 2 1 1 3 4 3 . Failed 166 | . 12 . 18 . 4 4 11 4 7 . 13 3 12 1 5 6 4 5 7 9 1 . 5 . 1 . 4 4 4 2 . 4 6 5 5 Catastrophic 24 | . 1 . 2 . . . . . 2 . 1 . 1 . . 1 . 2 2 2 . . 1 . . . 2 1 . . . 1 1 . 4 Database Lockouts 2 | . 1 . 1 . . . . . . . . . . . . . . . . . . . . . . . . . . . . . . . . Manual 117 | . 13 . 22 . . 2 8 . 1 . 10 . 6 . 6 . 2 4 10 4 1 . 10 . 2 . 5 . 5 . . . 2 4 . Terminals 215 | . 30 . 30 . 3 6 19 6 9 . 2 5 8 2 5 7 3 10 6 22 2 . 12 1 . . . 4 . 3 . 4 6 8 2 Fabricators 45 | . . . . . . . . . . . 20 . 3 . . . 2 . 8 . . . . . 5 . 4 . . . . . . . 3 Repair Stations 22 | . 5 . 5 . . . 1 . 1 . 1 . 3 . . . . . . 1 . . . . 1 . . . 3 . . . 1 . . Recycling Units 6 | . 1 . 4 . . . . . . . . . . . 1 . . . . . . . . . . . . . . . . . . . . Scanalyzers 32 | . . . 5 . 4 . 12 . 4 . . . 5 . . . . . . . . . . . . . . . . . . 1 1 . . Garrison Access 31 | . . . . . 1 . 1 . 2 . 2 . 6 . 2 . 1 . . . . . 2 . . . 6 . 3 . 1 2 2 . . Terminal Hacks 82 | . 13 . 7 . 1 2 8 2 4 . . 2 2 1 2 1 . 5 2 13 1 . 8 1 . . . . . 1 . 1 2 3 . Record 1 | . . . . . . . . . . . . . . . . . . . . . . . . . . . . . . . . . 1 . . Part Schematic 1 | . . . . . . . . . . . . . . . . . . . . . . . 1 . . . . . . . . . . . . Robot Schematic 5 | . 2 . 1 . . . . . . . . . . . 1 . . . . . . . 1 . . . . . . . . . . . . Robot Analysis 3 | . 1 . 1 . . . . . . . . . . . 1 . . . . . . . . . . . . . . . . . . . . Prototype ID Bank 11 | . 5 . 2 . . . 1 . . . . . 1 . . . . . . 1 . . 1 . . . . . . . . . . . . Open Door 11 | . . . . . . . . 1 . . . 1 . . . . . 1 . 7 1 . . . . . . . . . . . . . . Emergency Access Points 7 | . 1 . . . . . . 1 1 . . . . 1 . . . 1 . . . . . . . . . . . 1 . . . 1 . Terminal Index 1 | . . . . . . . 1 . . . . . . . . . . . . . . . . . . . . . . . . . . . . Scanalyzer Index 1 | . . . . . . . 1 . . . . . . . . . . . . . . . . . . . . . . . . . . . . Garrison Index 1 | . . . . . . . . . . . . . . . . . . . . . . . 1 . . . . . . . . . . . . Unreport Threat 10 | . . . . . . . 3 . 1 . . . . . . . . . 2 2 . . 1 . . . . . . . . 1 . . . Locate Traps 11 | . 2 . 1 . 1 . 1 . 2 . . . 1 . . . . . . 1 . . 2 . . . . . . . . . . . . Disarm Traps 1 | . . . . . . . . . . . . . . . . . . . . 1 . . . . . . . . . . . . . . . Recall Investigation 1 | . . . . . . . . . . . . . . . . . . . . 1 . . . . . . . . . . . . . . . Recall Reinforcements 1 | . . . . . . . . . . . . . . . . . . . . . . . 1 . . . . . . . . . . . . Hauler Manifests 4 | . 1 . 2 . . . 1 . . . . . . . . . . . . . . . . . . . . . . . . . . . . Zone Layout 1 | . 1 . . . . . . . . . . . . . . . . . . . . . . . . . . . . . . . . . . Garrison Registry 4 | . . . . . . 1 . . . . . . . . . . . 1 . . . . . 1 . . . . . . . . . 1 . Patrol Navigation 3 | . . . . . . 1 . . . . . 1 . . . . . 1 . . . . . . . . . . . . . . . . . Security Stations 3 | . . . . . . . . . . . . . . . . 1 . 1 . . . . . . . . . . . . . . . 1 . Proto ID Catalog 1 | . . . . . . . . . . . . . . . . . . . . . . . . . . . . . . . . . 1 . . Fabricator Hacks 19 | . . . . . . . . . . . 6 . 2 . . . 1 . 3 . . . . . 4 . 3 . . . . . . . . Network Status 5 | . . . . . . . . . . . 1 . 1 . . . 1 . 1 . . . . . . . 1 . . . . . . . . Load Schematic 6 | . . . . . . . . . . . 2 . . . . . . . 1 . . . . . 2 . 1 . . . . . . . . Build 8 | . . . . . . . . . . . 3 . 1 . . . . . 1 . . . . . 2 . 1 . . . . . . . . Repair Station Hacks 8 | . 4 . 4 . . . . . . . . . . . . . . . . . . . . . . . . . . . . . . . . Scan Component 4 | . 2 . 2 . . . . . . . . . . . . . . . . . . . . . . . . . . . . . . . . Repair 4 | . 2 . 2 . . . . . . . . . . . . . . . . . . . . . . . . . . . . . . . . Recycling Unit Hacks . | . . . . . . . . . . . . . . . . . . . . . . . . . . . . . . . . . . . . Scanalyzer 22 | . . . 5 . 2 . 11 . 2 . . . 2 . . . . . . . . . . . . . . . . . . . . . . Insert Component 10 | . . . 2 . 1 . 5 . 1 . . . 1 . . . . . . . . . . . . . . . . . . . . . . Analyze 12 | . . . 3 . 1 . 6 . 1 . . . 1 . . . . . . . . . . . . . . . . . . . . . . Garrison Access Hacks 20 | . . . . . 1 . 1 . 2 . 1 . 4 . 1 . 1 . . . . . 1 . . . 2 . 2 . 1 2 1 . . Unlock Access 13 | . . . . . 1 . 1 . . . 1 . 2 . 1 . 1 . . . . . 1 . . . 2 . 2 . . . 1 . . Seal Access 6 | . . . . . . . . . 2 . . . 2 . . . . . . . . . . . . . . . . . 1 1 . . . Coupler Status 1 | . . . . . . . . . . . . . . . . . . . . . . . . . . . . . . . . 1 . . . Unauthorized Hacks 32 | . 6 . 9 . . . 2 . 1 . 5 . 3 . . . . . 2 1 . . . . 1 . 1 . . . . . 1 . . Terminals 14 | . 5 . 7 . . . 1 . . . 1 . . . . . . . . . . . . . . . . . . . . . . . . Assimilate 3 | . . . 1 . . . 1 . . . 1 . . . . . . . . . . . . . . . . . . . . . . . . Disrupt 1 | . . . 1 . . . . . . . . . . . . . . . . . . . . . . . . . . . . . . . . Skim 10 | . 5 . 5 . . . . . . . . . . . . . . . . . . . . . . . . . . . . . . . . Fabricators 7 | . . . . . . . . . . . 3 . 1 . . . . . 2 . . . . . . . 1 . . . . . . . . Prioritize 3 | . . . . . . . . . . . 1 . . . . . . . 1 . . . . . . . 1 . . . . . . . . Liberate 1 | . . . . . . . . . . . 1 . . . . . . . . . . . . . . . . . . . . . . . . Haulers 2 | . . . . . . . . . . . 1 . . . . . . . 1 . . . . . . . . . . . . . . . . Overload 1 | . . . . . . . . . . . . . 1 . . . . . . . . . . . . . . . . . . . . . . Repair Stations 8 | . . . . . . . 1 . 1 . 1 . 2 . . . . . . 1 . . . . 1 . . . . . . . 1 . . Mechanics 7 | . . . . . . . 1 . 1 . 1 . 1 . . . . . . 1 . . . . 1 . . . . . . . 1 . . Patch 1 | . . . . . . . . . . . . . 1 . . . . . . . . . . . . . . . . . . . . . . Recycling Units 3 | . 1 . 2 . . . . . . . . . . . . . . . . . . . . . . . . . . . . . . . . Tunnel 3 | . 1 . 2 . . . . . . . . . . . . . . . . . . . . . . . . . . . . . . . . Scanalyzers . | . . . . . . . . . . . . . . . . . . . . . . . . . . . . . . . . . . . . Garrison Access . | . . . . . . . . . . . . . . . . . . . . . . . . . . . . . . . . . . . . Data Cores Recovered . | . . . . . . . . . . . . . . . . . . . . . . . . . . . . . . . . . . . . Used . | . . . . . . . . . . . . . . . . . . . . . . . . . . . . . . . . . . . . Hacking Detections 108 | . 5 . 12 . 2 2 7 2 7 . 6 1 11 . 3 2 3 4 2 10 . . 5 . 1 . 3 1 3 2 . 4 5 2 3 Full Trace Events 13 | . . . 1 . 1 2 . . 1 . . 1 2 . . 1 . . . . . . . . . . 1 . . . . . . 1 2 Feedback Events 1 | . . . . . . . . . . . . . 1 . . . . . . . . . . . . . . . . . . . . . . Corruption 1 | . . . . . . . . . . . . . 1 . . . . . . . . . . . . . . . . . . . . . . Feedback Blocked . | . . . . . . . . . . . . . . . . . . . . . . . . . . . . . . . . . . . . Robot Schematics Acquired 8 | . 2 . 1 . . . . . . . . . . . 1 . . . . . . . 1 . . . . . . . . . 3 . . Robots Built 10 | . . . . . . . . . . . 2 . . . . . . . 2 . . . . . 4 . 2 . . . . . . . . Authchips 6 | . . . . . . . . . . . 2 . . . . . . . 1 . . . . . 2 . 1 . . . . . . . . Time 507 | . . . . . . . . . . . 121 . . . . . . . 134 . . . . . 168 . 84 . . . . . . . . Total Robot Build Rating 46 | . . . . . . . . . . . 2 . . . . . . . 8 . . . . . 24 . 12 . . . . . . . . Part Schematics Acquired 16 | . . . 2 . 1 . 5 . . . . . . . . . . . . . . . 1 . . . . . . . . . 7 . . Parts Built 3 | . . . . . . . . . . . 1 . 2 . . . . . . . . . . . . . . . . . . . . . . Authchips . | . . . . . . . . . . . . . . . . . . . . . . . . . . . . . . . . . . . . Time 170 | . . . . . . . . . . . 53 . 117 . . . . . . . . . . . . . . . . . . . . . . Total Part Build Rating 20 | . . . . . . . . . . . 6 . 14 . . . . . . . . . . . . . . . . . . . . . . Parts Repaired 4 | . 2 . 2 . . . . . . . . . . . . . . . . . . . . . . . . . . . . . . . . Time 149 | . 62 . 87 . . . . . . . . . . . . . . . . . . . . . . . . . . . . . . . . Parts Recycled . | . . . . . . . . . . . . . . . . . . . . . . . . . . . . . . . . . . . . Recycled Matter . | . . . . . . . . . . . . . . . . . . . . . . . . . . . . . . . . . . . . Retrieved Matter . | . . . . . . . . . . . . . . . . . . . . . . . . . . . . . . . . . . . . Retrieved Components . | . . . . . . . . . . . . . . . . . . . . . . . . . . . . . . . . . . . . Parts Scanalyzed 10 | . . . 2 . 1 . 5 . 1 . . . 1 . . . . . . . . . . . . . . . . . . . . . . Part Schematics Acquired 8 | . . . 2 . 1 . 5 . . . . . . . . . . . . . . . . . . . . . . . . . . . . Parts Damaged 1 | . . . . . . . . . 1 . . . . . . . . . . . . . . . . . . . . . . . . . . Bothacking | -11 -10 -10 -9 -9 -8 -8 -8 -8 -7 -7 -7 -7 -7 -7 -6 -6 -5 -5 -5 -5 -5 -5 -5 -5 -4 -4 -4 -4 -3 -3 -2 -2 -2 -2 -1 ------------ Run | Yrd Mat Min Mat Min Mat Gar Mat Gar Fac Was Fac Gar Fac Gar Fac Gar Fac Gar Fac Ext Cet Arc Hub Gar Fac Was Fac Gar Res Gar Res Qua Frg Gar Acc Used RIF Installer 13 | . . . . . . 1 . 1 . . . 2 . 1 . 1 . 1 . . . . . 2 . . . 1 . 1 . . . 2 . Coupler Efficiency 1 | . . . . . . . . . . . . . . . . . . . . . . . . 1 . . . . . . . . . . . Hotswap 1 | . . . . . . . . 1 . . . . . . . . . . . . . . . . . . . . . . . . . . . Code Merge 1 | . . . . . . . . . . . . . . . . . . . . . . . . . . . . . . . . . . 1 . Signal Jammer 1 | . . . . . . . . . . . . . . . . . . . . . . . . . . . . . . . . . . 1 . Zone Cloak 2 | . . . . . . . . . . . . . . . . . . . . . . . . . . . . 1 . 1 . . . . . Watcher Feeds 1 | . . . . . . . . . . . . . . . . 1 . . . . . . . . . . . . . . . . . . . Alert ID Control 1 | . . . . . . . . . . . . 1 . . . . . . . . . . . . . . . . . . . . . . . Program Shield 1 | . . . . . . . . . . . . . . . . . . 1 . . . . . . . . . . . . . . . . . Autoassimilate 2 | . . . . . . . . . . . . 1 . 1 . . . . . . . . . . . . . . . . . . . . . Crosswire 1 | . . . . . . . . . . . . . . . . . . . . . . . . 1 . . . . . . . . . . . Robots Hacked 479 | . . . . . . . 13 1 10 . 9 8 6 2 9 17 10 27 14 26 1 8 9 19 3 6 57 34 19 18 24 6 64 14 45 Non-combat 124 | . . . . . . . 13 1 10 . 5 . 5 . 8 . 4 1 10 4 1 7 7 . 1 . 21 . 4 . 6 3 6 . 7 Combat 355 | . . . . . . . . . . . 4 8 1 2 1 17 6 26 4 22 . 1 2 19 2 6 36 34 15 18 18 3 58 14 38 Autoassimilated 121 | . . . . . . . . . . . . . . . . 1 1 7 3 2 . 1 . 7 1 . 8 10 10 7 8 1 30 6 18 Robot Hacks Applied 420 | . . . . . . . 17 1 12 . 9 8 7 2 11 16 13 25 13 25 1 9 9 13 3 7 63 24 11 14 20 6 42 8 31 parse_system 37 | . . . . . . . 4 . . . 2 . . . . 1 1 4 . 3 . 2 3 . . . 8 . 1 2 1 . 5 . . find_chute 2 | . . . . . . . . . 1 . . . . . . . 1 . . . . . . . . . . . . . . . . . . ignore_repairs 17 | . . . . . . . . . 9 . . . . . 3 . . . 5 . . . . . . . . . . . . . . . . map_walls 2 | . . . . . . . . . . . . . . . 1 . . . 1 . . . . . . . . . . . . . . . . find_fabricator 1 | . . . . . . . . . . . . . . . . . . . . . . . . . . . 1 . . . . . . . . drop_inventory 13 | . . . . . . . 1 . . . . . 1 . . . . . . . . . 2 . . . 4 . 1 . 2 1 . . 1 ignore_parts 3 | . . . . . . . 1 . . . . . . . . . . . . . . . . . . . . . . . 1 1 . . . deconstruct_bot 1 | . . . . . . . . . . . . . . . . . . . . . . . . . . . . . . . . . . . 1 purge_threat 5 | . . . . . . . 1 . . . . . . . . . 2 . 1 1 . . . . . . . . . . . . . . . locate_traps 1 | . . . . . . . . . . . . . . . . . . . . . . . . . . . . . . . . . . . 1 reprogram_traps 1 | . . . . . . . . . . . . . . . . . . . . . . . . . . . 1 . . . . . . . . map_route 13 | . . . . . . . . . . . . . 1 . . . . . 1 . . . 1 . . . 3 . 1 . 2 1 1 . 2 mark_security 2 | . . . . . . . . . . . . . . . . . . . . . 1 . . . . . . . . . . . 1 . . redirect_shields 4 | . . . . . . . . . 1 . . . . . . . . 1 . . . . . . . . 1 . . . 1 . . . . disable_scanner 5 | . . . . . . . . . . . . . . . . . . . . . . . . . . . . . . . . . 5 . . locate_prototypes 1 | . . . . . . . . . . . . . . . . . . . . . . . . . . . . . . . . . 1 . . report_prototypes 1 | . . . . . . . . . . . . . . . . . . . . . . . . . . . . . . . . . 1 . . ignore_targets 7 | . . . . . . . . . . . . . . . . . . . . . . . . . . 7 . . . . . . . . . find_garrison 7 | . . . . . . . . . . . . . 1 . 1 . 1 . . . . . . . 1 . 1 . 2 . . . . . . scatter_targeting 1 | . . . . . . . . . . . . . . . . . . . . . . . . . . . . . . 1 . . . . . amplify_resonance 19 | . . . . . . . . . . . . 2 . . 1 . . 2 . 1 . . . 3 . . 4 1 . . . . 1 . 4 wipe_record 1 | . . . . . . . . . . . . . . . . . . 1 . . . . . . . . . . . . . . . . . reboot_system 38 | . . . . . . . . . . . . . . . . 3 1 4 1 9 . . . 2 . . 3 4 . 4 . 1 4 1 1 overwrite_iff 70 | . . . . . . . . . . . 2 3 . 1 . 6 1 4 . 4 . . . 5 . . 8 9 . 3 3 . 6 1 14 streamctrl_high 1 | . . . . . . . . . 1 . . . . . . . . . . . . . . . . . . . . . . . . . . formatsys_low 61 | . . . . . . . 10 1 . . 3 . 1 . 5 . 3 . 4 2 . 7 . . 1 . 13 . 3 . 2 1 3 . 2 formatsys_high 105 | . . . . . . . . . . . 2 3 3 1 . 6 3 9 . 5 . . 3 3 1 . 16 10 2 4 8 1 14 6 5 formatsys_deep 1 | . . . . . . . . . . . . . . . . . . . . . . . . . . . . . 1 . . . . . . Relay Couplers Released 209 | . . . . . . 13 . 18 . . . 17 . 23 . 21 . 37 . . . . . 17 . . 5 16 1 16 1 2 3 19 . Machine Destruction 188 | . . . . . . 13 . 18 . . . 13 . 20 . 17 . 37 . . . . . 17 . . 2 12 1 16 1 2 . 19 . Programmers 21 | . . . . . . . . . . . . 4 . 3 . 4 . . . . . . . . . . 3 4 . . . . 3 . . Attached 101 | . . . . . . . 4 1 . . 2 4 1 2 2 1 3 6 2 . . 5 1 6 1 . 9 10 2 3 7 6 9 9 5 Crosswired 38 | . . . . . . . . . . . . . . . . . . . . . . . . 13 . . 4 11 1 2 1 1 1 4 . Merged Code Value 62 | . . . . . . . . . . . . . . . . . . . . . . . . . . . . . . . . . . 62 . Fabnet Peak Effective % . | . . . . . . . . . . . . . . . . . . . . . . . . . . . . . . . . . . . . Robots Rewired 30 | . . . . . . . . 2 . . . . . 3 . 2 . 4 . 8 . . . 6 . . . 1 . 4 . . . . . Allies Hacked 7 | . . . . . . . . . 1 . . . . . . . . . 1 1 . . . . . . 3 . 1 . . . . . . Hacks Repelled . | . . . . . . . . . . . . . . . . . . . . . . . . . . . . . . . . . . . . Allies | -11 -10 -10 -9 -9 -8 -8 -8 -8 -7 -7 -7 -7 -7 -7 -6 -6 -5 -5 -5 -5 -5 -5 -5 -5 -4 -4 -4 -4 -3 -3 -2 -2 -2 -2 -1 -------- Run | Yrd Mat Min Mat Min Mat Gar Mat Gar Fac Was Fac Gar Fac Gar Fac Gar Fac Gar Fac Ext Cet Arc Hub Gar Fac Was Fac Gar Res Gar Res Qua Frg Gar Acc Total Allies 441 | . . . 1 2 . . 10 5 1 . 13 8 4 7 5 17 8 24 10 38 5 8 3 21 7 . 48 30 19 20 21 3 52 13 38 Largest Group 48 | . . . 1 2 1 . 7 8 8 5 9 2 3 9 8 13 19 32 31 48 43 44 44 43 47 25 32 21 23 22 12 13 16 8 5 Highest-Rated Group 1917 | . . . 10 43 31 . 62 99 114 63 191 70 157 418 382 480 691 1237 1193 1740 1877 1917 1915 1797 1917 995 1358 1031 1253 1119 532 987 1255 350 281 Highest-Rated Ally 344 | . . . 10 31 31 . 26 31 40 23 107 39 109 109 102 102 101 106 106 159 159 159 104 106 106 106 142 142 142 142 148 344 344 58 119 Total Orders 1194 | . . . . . . . 13 24 23 5 66 . . 50 7 136 5 202 41 22 11 128 6 210 6 1 70 91 3 32 7 10 17 1 7 STAY 601 | . . . . . . . 5 4 6 2 41 . . 20 5 65 2 108 7 1 . 76 1 144 . . 23 64 1 15 2 2 5 1 1 ROAM 3 | . . . . . . . . . . . . . . . . . . 1 . . . . . . . . . 2 . . . . . . . FOLLOW 243 | . . . . . . . 1 6 10 2 4 . . 13 1 35 2 52 6 1 2 17 2 38 1 . 15 12 1 8 3 3 5 . 3 GUARD 42 | . . . . . . . . . 3 . 1 . . . . 4 . 1 16 9 2 3 . 1 . . . . . . . 1 1 . . AID 94 | . . . . . . . 1 3 4 1 11 . . . . . 1 16 11 8 3 3 3 5 2 1 8 . 1 1 2 2 6 . 1 DROP 41 | . . . . . . . 2 3 . . 3 . . 3 . 5 . 3 . 2 1 6 . 4 1 . 5 3 . . . . . . . PICKUP 132 | . . . . . . . 4 5 . . 4 . . 12 1 22 . 15 . . 1 21 . 13 1 . 17 8 . 7 . . . . 1 COLLECT 38 | . . . . . . . . 3 . . 2 . . 2 . 5 . 6 1 1 2 2 . 5 1 . 2 2 . 1 . 2 . . 1 Ally Attacks 1950 | . . . . 5 19 . . 12 12 . 11 50 12 10 . 51 17 94 75 138 32 19 49 75 7 20 287 75 132 159 64 22 370 74 59 Total Damage 64381 | . . . . 83 291 . . 153 119 . 388 487 128 508 . 966 674 2118 2481 4663 707 606 1885 2092 120 1635 11025 2305 4614 4376 2181 1154 14886 1878 1858 Kills 319 | . . . . 1 2 . . 4 . . 4 9 . 2 . 3 2 18 9 29 6 3 8 11 2 4 56 20 19 24 6 7 58 9 3 Allies Corrupted 19 | . . . . . . . . . . . . . . . . . . . . . 1 . . 1 . 1 1 . . 1 3 . 10 . 1 Allies Melted 2 | . . . . . . . . . . . . . . . . . . . . . . . . 1 . . . . . . . . 1 . . Intel | -11 -10 -10 -9 -9 -8 -8 -8 -8 -7 -7 -7 -7 -7 -7 -6 -6 -5 -5 -5 -5 -5 -5 -5 -5 -4 -4 -4 -4 -3 -3 -2 -2 -2 -2 -1 ------- Run | Yrd Mat Min Mat Min Mat Gar Mat Gar Fac Was Fac Gar Fac Gar Fac Gar Fac Gar Fac Ext Cet Arc Hub Gar Fac Was Fac Gar Res Gar Res Qua Frg Gar Acc Active Infowar (turns) 7544 | 270 1594 . . . . 1558 . . 573 1007 809 . . . . 1 . . . . . . . . . . 162 . . 551 2 . . . 1017 Optics 292 | . . . . . . . . . . 9 . . . . . . . . . . . . . . . . . . . . . . . . 283 Sensors 2 | . . . . . . . . . . . . . . . . . . . . . . . . . . . . . . . 2 . . . . IFF 2380 | . . . . . . . . . 573 998 809 . . . . . . . . . . . . . . . . . . . . . . . . Seismic 3422 | 270 1594 . . . . 1558 . . . . . . . . . . . . . . . . . . . . . . . . . . . . . Triangulation 9 | . . . . . . . . . . . . . . . . . . . . . . . . . . . 9 . . . . . . . . Cloaking 749 | . . . . . . . . . . . . . . . . . . . . . . . . . . . 153 . . . . . . . 596 Spoofing 1 | . . . . . . . . . . . . . . . . 1 . . . . . . . . . . . . . . . . . . . Jamming 770 | . . . . . . . . . . . . . . . . . . . . . . . . . . . . . . 551 . . . . 219 Robot Analysis Total 3 | . 1 . 1 . . . . . . . . . . . 1 . . . . . . . . . . . . . . . . . . . . Derelict Logs Recovered 2 | . . 1 . 1 . . . . . . . . . . . . . . . . . . . . . . . . . . . . . . . Drone Launches . | . . . . . . . . . . . . . . . . . . . . . . . . . . . . . . . . . . . . Drone Recoveries . | . . . . . . . . . . . . . . . . . . . . . . . . . . . . . . . . . . . . Exploration | -11 -10 -10 -9 -9 -8 -8 -8 -8 -7 -7 -7 -7 -7 -7 -6 -6 -5 -5 -5 -5 -5 -5 -5 -5 -4 -4 -4 -4 -3 -3 -2 -2 -2 -2 -1 ------------- Run | Yrd Mat Min Mat Min Mat Gar Mat Gar Fac Was Fac Gar Fac Gar Fac Gar Fac Gar Fac Ext Cet Arc Hub Gar Fac Was Fac Gar Res Gar Res Qua Frg Gar Acc Turns Passed 67592 | 495 2670 1867 4623 1354 1227 2146 2980 3074 599 1018 953 1022 755 2282 443 2860 289 4939 753 1286 750 2368 441 4953 295 408 2209 3702 1049 2753 764 1294 5964 1660 1347 Spaces Moved 39352 | 248 1040 714 1721 559 404 783 924 1831 1274 930 2090 1654 1615 1454 132 1919 199 3360 499 821 460 1450 269 3354 216 159 1230 1983 398 1147 329 482 2409 843 452 Core 200 | 4 . . . . . . . . . 178 . . . . . . . . . . . . . . . . . . . . . . . . 18 Treads 11232 | 244 1040 714 1721 559 404 783 865 60 . . . . . . . . . . . . . . . . . . . 654 398 169 60 482 2409 654 16 Legs 16832 | . . . . . . . . . . . . . . 1439 132 1919 199 3360 499 821 460 1450 269 3354 216 159 1230 1325 . . . . . . . Wheels 3698 | . . . . . . . 59 1771 10 . . . . . . . . . . . . . . . . . . 4 . 978 269 . . 189 418 Hover 3418 | . . . . . . . . . . . 134 1654 1615 15 . . . . . . . . . . . . . . . . . . . . . Flight 3972 | . . . . . . . . . 1264 752 1956 . . . . . . . . . . . . . . . . . . . . . . . . Fastest Speed 22 | 50 160 240 160 240 230 230 150 120 26 26 22 38 22 38 120 120 120 120 120 120 120 120 120 120 120 120 120 120 240 170 190 240 160 120 50 Average Speed 136 | 158 212 240 233 240 235 234 233 136 26 88 26 38 37 121 120 120 120 120 120 120 120 120 120 120 120 120 139 159 240 196 199 240 193 151 142 Slowest Speed 1800 | 160 240 240 240 240 240 235 240 240 120 350 97 38 92 190 120 120 120 120 120 120 120 190 120 120 120 120 190 240 240 240 240 240 240 195 1800 Overloaded Moves 36 | . . . . . . . . . . . 7 . 29 . . . . . . . . . . . . . . . . . . . . . . Propulsion Burnouts . | . . . . . . . . . . . . . . . . . . . . . . . . . . . . . . . . . . . . Robots Hopped 46 | . . . . . . . . . 18 1 27 . . . . . . . . . . . . . . . . . . . . . . . . Potential Cave-ins 26 | . . . . . . . . . . . . . 3 . . . . . 3 . . 2 . 4 . . . . . . . . 14 . . Cave-ins Triggered 1 | . . . . . . . . . . . . . . . . . . . . . . . . . . . . . . . . . 1 . . Teleports 1 | . . . . . . . . . . . . . . . . . . . . . . . . . . . . . . . . . . . 1 Exploration Rate (%) 58 | 14 98 97 96 99 30 82 61 96 19 96 21 82 36 66 5 93 9 94 14 88 70 98 46 77 3 70 31 75 18 96 13 57 47 84 20 Regions Visited 35 Branch Regions 8 Pre-discovered Areas 8 | . 2 1 5 . . . . . . . . . . . . . . . . . . . . . . . . . . . . . . . . Known Exits Taken 14 | . . 1 1 1 1 . 1 . . . 1 . 1 . 1 . 1 . . . . . 1 . . . 1 . 1 . 1 . 1 . . Unknown Exits Taken 7 | 1 1 . . . . . . . . . . . . . . . . . 1 1 1 1 . . . . . . . . . 1 . . . Scrap Searched 3 | . . . . 3 . . . . . . . . . . . . . . . . . . . . . . . . . . . . . . . Spaces Dug 368 | . . . . . . . . 4 8 . 1 . 15 . 9 47 . 52 36 15 21 27 . 32 . . 9 52 . . . 1 3 . 36 Terrain Destroyed 1417 | . 17 . . . . . 44 91 8 . 38 . 23 28 9 57 . 85 77 39 48 37 1 58 . 4 61 61 . 21 1 1 90 86 432 Melee 11 | . . . . . . . . 1 8 . 1 . . . . . . . . . . . . . . . . . . . . 1 . . . Projectile 640 | . . . . . . . 5 . . . . . 23 28 9 16 . 54 24 26 21 37 1 58 . 4 23 61 . 21 1 . 61 57 110 AOE 758 | . 17 . . . . . 39 90 . . 37 . . . . 41 . 31 53 13 27 . . . . . 38 . . . . . 28 25 319 Terrain Rammed . | . . . . . . . . . . . . . . . . . . . . . . . . . . . . . . . . . . . . Walls Destroyed . | . . . . . . . . . . . . . . . . . . . . . . . . . . . . . . . . . . . . Machines Disabled . | . . . . . . . . . . . . . . . . . . . . . . . . . . . . . . . . . . . . Actions | -11 -10 -10 -9 -9 -8 -8 -8 -8 -7 -7 -7 -7 -7 -7 -6 -6 -5 -5 -5 -5 -5 -5 -5 -5 -4 -4 -4 -4 -3 -3 -2 -2 -2 -2 -1 --------- Run | Yrd Mat Min Mat Min Mat Gar Mat Gar Fac Was Fac Gar Fac Gar Fac Gar Fac Gar Fac Ext Cet Arc Hub Gar Fac Was Fac Gar Res Gar Res Qua Frg Gar Acc Total 49938 | 293 1437 780 2089 565 576 940 1571 2267 1466 1128 2388 1949 1717 1872 398 2377 236 4116 611 1047 622 2045 388 4111 244 339 1633 2389 484 1509 438 609 3354 1066 884 Wait 5281 | 1 295 19 150 1 28 29 416 147 103 184 178 86 14 256 230 281 10 495 40 114 109 481 80 529 10 155 160 147 51 90 24 75 247 10 36 Move 39232 | 247 1039 713 1720 558 404 782 923 1830 1239 927 2039 1653 1614 1452 131 1918 198 3359 498 820 459 1449 268 3353 216 158 1230 1982 397 1146 328 481 2408 841 452 Hop 41 | . . . . . . . . . 17 1 23 . . . . . . . . . . . . . . . . . . . . . . . . Pick Up 541 | 8 22 3 32 1 8 16 19 26 3 2 8 12 13 26 3 26 1 27 6 7 8 17 2 17 2 . 16 35 4 22 12 6 82 19 30 Fast Attach 215 | 7 5 . 4 . 1 3 5 3 2 5 14 4 5 10 . 5 . 5 . . . 10 1 2 2 1 10 10 2 21 4 3 39 14 18 Attach 194 | . . 1 5 . 4 8 8 9 6 1 6 4 2 2 2 2 2 5 2 . 1 3 . 3 1 . 4 7 2 7 11 4 35 7 40 Detach 53 | . 2 . . . 1 . . 1 . . 2 . 3 . . 1 . . . . . 1 . . . . 2 3 . 1 4 1 14 2 15 Swap 505 | . 15 2 32 . 8 13 41 21 24 . 20 17 6 14 3 16 2 18 9 3 3 4 4 13 2 2 18 3 . 10 3 4 96 31 48 Drop 543 | . 19 3 33 1 9 14 35 21 22 7 16 12 6 36 2 22 . 14 4 2 6 23 3 14 1 . 9 25 2 28 11 9 87 22 25 Fire 2617 | 26 38 39 104 3 40 61 90 113 42 1 54 45 41 73 27 96 23 161 52 96 36 41 2 152 4 23 142 166 26 103 41 18 322 96 220 Melee 137 | . . . . . . . 30 3 8 . 10 11 . . . . . . . . . 16 13 13 . . . . . . . 6 19 8 . Ram . | . . . . . . . . . . . . . . . . . . . . . . . . . . . . . . . . . . . . Kick 1 | . . . . . . . . . . . . . . . . . . . . . . . . . . . 1 . . . . . . . . Crush 26 | 4 2 . 9 1 4 . 4 . . . . . . . . . . . . . . . . . . . . . . . . . 2 . . Escape Stasis 357 | . . . . . . 14 . 72 . . 18 104 13 3 . 10 . 32 . 5 . . . 15 . . . 10 . 40 . 2 3 16 . Rewire 43 | . . . . . . . . 21 . . . 1 . . . . . . . . . . . . . . 2 1 . 18 . . . . . Trap 118 | . . . . . 69 . . . . . . . . . . . . . . . . . 15 . . . 34 . . . . . . . . Miscellaneous 34 | . . . . . . . . . . . . . . . . . . . . . . . . . 6 . 5 . . 23 . . . . . Route ------- -11/Scrapyard -10/Materials (discovered 6 exits: *Mat x3 / [*Min x2] / *Sub) -10/Mines (discovered 4 exits: *Mat x2 / *Exi / Sub) -9/Materials (discovered 5 exits: *Mat x3 / *Min x2) -9/Mines (discovered 2 exits: *Mat x2) -8/Materials (discovered 2 exits: [*Sto] / Gar) -8/Garrison (discovered 3 exits: *Mat x3) -8/Materials (discovered 5 exits: *Fac x2 / [*Sto x2] / Gar) -8/Garrison (discovered 3 exits: *Fac x3) -7/Factory -7/Waste -7/Factory -7/Garrison (discovered 3 exits: *Fac x3) -7/Factory (discovered 3 exits: *Fac x2 / Gar) -7/Garrison (discovered 2 exits: *Fac x2) -6/Factory -6/Garrison (discovered 3 exits: *Fac x3) -5/Factory -5/Garrison (discovered 3 exits: *Fac x3) -5/Factory (discovered 2 exits: *Fac / *Ext) -5/Extension (discovered 2 exits: *Fac / *Cet) -5/Cetus (discovered 2 exits: *Fac / [*Arc]) -5/Archives (discovered 3 exits: *Fac / *Hub x2) -5/Hub_04(d) (discovered 3 exits: *Fac x2 / Gar) -5/Garrison (discovered 3 exits: *Fac x3) -4/Factory -4/Waste -4/Factory (discovered 2 exits: *Res / Gar) -4/Garrison (discovered 3 exits: *Res x3) -3/Research -3/Garrison (discovered 3 exits: *Res x3) -2/Research (discovered 2 exits: *Acc / *Qua) -2/Quarantine (discovered 2 exits: [*Sec] / *Frg) -2/Protoforge (discovered 2 exits: *Acc / Gar) -2/Garrison (discovered 3 exits: *Acc x3) -1/Access History --------- Turn | Location | Event 7 | -11/Scrapyard | Discovered new exit (range 16) 496 | -11/Scrapyard | Entered Materials 496 | -10/Materials | Discovered new exit (range 8) 497 | -10/Materials | Build established: Mutant 1037 | -10/Materials | Discovered new exit (range 5) 1160 | -10/Materials | Discovered new exit (range 16) 1432 | -10/Materials | Repaired Broken Lgt. Treads 1464 | -10/Materials | Repaired Lgt. Treads 1607 | -10/Materials | Central database locked down 1665 | -10/Materials | Discovered new exit (range 11) 1848 | -10/Materials | Discovered new exit (range 10) 2145 | -10/Materials | Discovered new exit (range 16) 2166 | -10/Materials | Learned location of 1 exit from Recycling 2240 | -10/Materials | Loaded intel: 7 terminal locations 2303 | -10/Materials | Learned Storage garrison access intel 2402 | -10/Materials | Learned location of Subcaves (-10) 2464 | -10/Materials | Learned location of 1 exit from Recycling 2502 | -10/Materials | Learned 2 Storage zone layouts 2552 | -10/Materials | Learned Storage stockpile data 2611 | -10/Materials | Learned 2 Mines zone layouts 2679 | -10/Materials | Learned location of 2 exits from Materials 3166 | -10/Materials | Entered Mines 3167 | -10/Mines | Identified exit to Materials 3167 | -10/Mines | Identified exit to Exiles 3241 | -10/Mines | Learned location of Storage (-8) 3532 | -10/Mines | Identified exit to Subcaves 3566 | -10/Mines | Received a Rocket Launcher from a helpful Derelict 3602 | -10/Mines | Joined a pair of Derelicts in attacking an 0b10 outpost 3852 | -10/Mines | Discovered exit to Materials (range 15) 4441 | -10/Mines | Excavation squad dispatched 4441 | -10/Mines | A large section of the Mines collapsed 4631 | -10/Mines | Core integrity fell below 50% 4800 | -10/Mines | Deemed a non-threat by the Exiles lab entrance 5033 | -10/Mines | Entered Materials 5033 | -9/Materials | Evolved 2 slots: Propulsion x1, Weapon x1 5034 | -9/Materials | Identified exit to Mines 5034 | -9/Materials | Identified exit to Materials 5370 | -9/Materials | Repaired Broken Lgt. Treads 5490 | -9/Materials | Build established: Tank 6484 | -9/Materials | Discovered exit to Materials (range 8) 7481 | -9/Materials | Discovered exit to Materials (range 4) 7913 | -9/Materials | Central database locked down 7993 | -9/Materials | Repaired Imp. Assault Rifle 8140 | -9/Materials | Learned location of Zion (-6) 8210 | -9/Materials | Learned Storage trap positions 9226 | -9/Materials | Core integrity fell below 50% 9656 | -9/Materials | Entered Mines 10693 | -9/Mines | Learned 4 Materials zone layouts 11010 | -9/Mines | Entered Materials 11010 | -8/Materials | Accompanied by 1 ally 11010 | -8/Materials | Evolved 2 slots: Utility x1, Weapon x1 11015 | -8/Materials | Led the pair of lost Derelicts to an unsafe place 11496 | -8/Materials | Discovered new exit (range 3) 11632 | -8/Materials | Garrison activated, responded to threat 11740 | -8/Materials | Garrison activated, responded to threat 12237 | -8/Materials | Identified exit to Garrison 12237 | -8/Materials | Entered Garrison 12238 | -8/Garrison | Identified exit to Materials 12401 | -8/Garrison | Triggered checkpoint 12501 | -8/Garrison | Garrison Relay disabled 12677 | -8/Garrison | Triggered checkpoint 12866 | -8/Garrison | Build established: Scavenger-Gunner 12872 | -8/Garrison | Installed Relay Interface Framework 13012 | -8/Garrison | Garrison Relay disabled 13126 | -8/Garrison | Triggered checkpoint 13322 | -8/Garrison | Triggered checkpoint 13359 | -8/Garrison | Garrison Relay disabled 13655 | -8/Garrison | Build established: Bothacker-Gunner 13874 | -8/Garrison | Triggered checkpoint 14000 | -8/Garrison | Discovered exit to Materials (range 9) 14016 | -8/Garrison | Discovered exit to Materials (range 81) 14016 | -8/Garrison | Discovered exit to Materials (range 46) 14016 | -8/Garrison | Discovered exit to Materials (range 9) 14383 | -8/Garrison | Entered Materials 14902 | -8/Materials | Build established: Scavenger-Tank 15059 | -8/Materials | Discovered new exit (range 6) 15122 | -8/Materials | Discovered new exit (range 12) 15522 | -8/Materials | Build established: Scavenger-Gunner 16013 | -8/Materials | Discovered new exit (range 11) 16159 | -8/Materials | Discovered new exit (range 10) 16268 | -8/Materials | Garrison activated, responded to threat 16275 | -8/Materials | Core integrity fell below 50% 16740 | -8/Materials | Identified exit to Garrison 17338 | -8/Materials | Build established: Commander-Gunner 17363 | -8/Materials | Entered Garrison 17363 | -8/Garrison | Accompanied by 5 allies 17400 | -8/Garrison | Triggered checkpoint 17614 | -8/Garrison | Triggered checkpoint 17667 | -8/Garrison | Build established: Commander-Tank 17670 | -8/Garrison | Garrison Relay disabled 17821 | -8/Garrison | Triggered checkpoint 17883 | -8/Garrison | Destroyed 8 combat bots 17912 | -8/Garrison | Lost 4 parts (1p1n1u1w) 18054 | -8/Garrison | Triggered checkpoint 18132 | -8/Garrison | Triggered checkpoint 18153 | -8/Garrison | Discovered new exit (range 15) 18236 | -8/Garrison | Build established: Commander-Gunner 18239 | -8/Garrison | Rescued a captive Derelict 18242 | -8/Garrison | Rescued a captive Derelict 18350 | -8/Garrison | Triggered checkpoint 18371 | -8/Garrison | Triggered checkpoint 18376 | -8/Garrison | Core integrity fell below 20% 18457 | -8/Garrison | Triggered checkpoint 18488 | -8/Garrison | Garrison Relay disabled 18510 | -8/Garrison | Discovered new exit (range 14) 18570 | -8/Garrison | Garrison Relay disabled 18591 | -8/Garrison | Phase Generator disabled 18787 | -8/Garrison | Expanded RIF knowledge: Hotswap 19181 | -8/Garrison | Triggered checkpoint 19236 | -8/Garrison | Garrison Relay disabled 19276 | -8/Garrison | Discovered new exit (range 10) 19796 | -8/Garrison | Garrison Relay disabled 20437 | -8/Garrison | Entered Factory 20437 | -7/Factory | Accompanied by 8 allies 20437 | -7/Factory | Evolved 2 slots: Propulsion x1, Utility x1 20552 | -7/Factory | Allied Derelicts emerged from ambush trap array 20759 | -7/Factory | Build established: Commander-Sprinter 20837 | -7/Factory | First assault squad dispatched 20976 | -7/Factory | Lost 5 allies 21036 | -7/Factory | Manually triggered Chute Trap 21036 | -7/Factory | Sucked down chute 21036 | -7/Factory | Entered Waste 21036 | -7/Waste | The area was eerily silent 21036 | -7/Waste | Met up with 2 allies sucked down the chute earlier 21116 | -7/Waste | 5 allies followed down the chute 21184 | -7/Waste | Discovered new exit (range 16) 21366 | -7/Waste | Found Prototype Launcher 21366 | -7/Waste | Identified Scatter Rocket Array 21657 | -7/Waste | Build established: Commander-Gunner 22054 | -7/Waste | Entered Factory 22054 | -7/Factory | Accompanied by 5 allies 22124 | -7/Factory | Lost 5 allies 22141 | -7/Factory | Fabricated M-13 Machinist (x1) 22199 | -7/Factory | Fabricated A-02 Transporter (x1) 22492 | -7/Factory | Build established: Commander-Sprinter 22507 | -7/Factory | Fabricated Adv. System Shield (x1) 22763 | -7/Factory | Cargo convoy interrupted 22904 | -7/Factory | Lost 5 parts (1n4w) 22906 | -7/Factory | Lost 7 allies 22979 | -7/Factory | Core integrity fell below 50% 23001 | -7/Factory | Identified exit to Garrison 23007 | -7/Factory | Entered Garrison 23026 | -7/Garrison | Rescued a captive Derelict 23028 | -7/Garrison | Rescued a captive Derelict 23056 | -7/Garrison | Triggered checkpoint 23081 | -7/Garrison | Garrison Relay disabled 23174 | -7/Garrison | Triggered checkpoint 23187 | -7/Garrison | Triggered checkpoint 23191 | -7/Garrison | Triggered checkpoint 23219 | -7/Garrison | Build established: Gunner 23261 | -7/Garrison | Triggered checkpoint 23301 | -7/Garrison | Garrison Relay disabled 23315 | -7/Garrison | Discovered new exit (range 3) 23437 | -7/Garrison | Garrison Relay disabled 23477 | -7/Garrison | Discovered new exit (range 14) 23484 | -7/Garrison | Expanded RIF knowledge: Alert ID Control 23589 | -7/Garrison | Expanded RIF knowledge: Autoassimilate 23598 | -7/Garrison | Triggered checkpoint 23740 | -7/Garrison | Garrison Relay disabled 23758 | -7/Garrison | Discovered new exit (range 10) 24029 | -7/Garrison | Entered Factory 24029 | -7/Factory | Accompanied by 1 ally 24048 | -7/Factory | Build established: Bothacker-Gunner 24073 | -7/Factory | Discovered new exit (range 4) 24190 | -7/Factory | Discovered new exit (range 14) 24413 | -7/Factory | Identified exit to Garrison 24502 | -7/Factory | Fabricated Graphene Brace? 24539 | -7/Factory | Cargo convoy interrupted 24721 | -7/Factory | Identified exit to Garrison 24784 | -7/Factory | Entered Garrison 24784 | -7/Garrison | Accompanied by 3 allies 24916 | -7/Garrison | Core integrity fell below 20% 24958 | -7/Garrison | Triggered checkpoint 24989 | -7/Garrison | Build established: Gunner 25067 | -7/Garrison | Garrison Relay disabled 25130 | -7/Garrison | Triggered checkpoint 25280 | -7/Garrison | Triggered checkpoint 25345 | -7/Garrison | Expanded RIF knowledge: Autoassimilate 25608 | -7/Garrison | Discovered new exit (range 9) 25621 | -7/Garrison | Triggered checkpoint 25640 | -7/Garrison | Garrison Relay disabled 25731 | -7/Garrison | Triggered checkpoint 25788 | -7/Garrison | Garrison Relay disabled 25794 | -7/Garrison | Found embedded Infiltrators 25832 | -7/Garrison | Triggered checkpoint 25882 | -7/Garrison | Discovered new exit (range 10) 25912 | -7/Garrison | Triggered checkpoint 25938 | -7/Garrison | Triggered checkpoint 25953 | -7/Garrison | Garrison Relay disabled 25983 | -7/Garrison | Garrison Relay disabled 26220 | -7/Garrison | Build established: Commander-Gunner 26574 | -7/Garrison | Build established: Bothacker-Gunner 27066 | -7/Garrison | Entered Factory 27066 | -6/Factory | Accompanied by 4 allies 27066 | -6/Factory | Evolved 2 slots: Utility x2 27208 | -6/Factory | Build established: Botlord-Gunner 27242 | -6/Factory | Identified exit to Garrison 27509 | -6/Factory | Entered Garrison 27509 | -6/Garrison | Accompanied by 9 allies 27597 | -6/Garrison | Triggered checkpoint 27640 | -6/Garrison | Garrison Relay disabled 27703 | -6/Garrison | Learned Factory security intel 27808 | -6/Garrison | Lost 3 allies 27896 | -6/Garrison | Triggered checkpoint 27898 | -6/Garrison | Triggered checkpoint 27915 | -6/Garrison | Triggered checkpoint 27944 | -6/Garrison | Triggered checkpoint 27976 | -6/Garrison | Lost 6 allies 28103 | -6/Garrison | Triggered checkpoint 28137 | -6/Garrison | Garrison Relay disabled 28163 | -6/Garrison | Garrison Relay disabled 28212 | -6/Garrison | Discovered new exit (range 12) 28316 | -6/Garrison | Expanded RIF knowledge: Watcher Feeds 28324 | -6/Garrison | Discovered new exit (range 12) 28389 | -6/Garrison | Triggered checkpoint 28415 | -6/Garrison | Garrison Relay disabled 28420 | -6/Garrison | Found embedded Infiltrators 28520 | -6/Garrison | Discovered new exit (range 15) 28579 | -6/Garrison | Triggered checkpoint 28596 | -6/Garrison | Garrison Relay disabled 30369 | -6/Garrison | Entered Factory 30369 | -5/Factory | Accompanied by 13 allies 30369 | -5/Factory | Evolved 2 slots: Utility x2 30619 | -5/Factory | Identified exit to Garrison 30658 | -5/Factory | Entered Garrison 30658 | -5/Garrison | Accompanied by 18 allies 30923 | -5/Garrison | Build established: Commander-Gunner 31079 | -5/Garrison | Garrison Relay disabled 31112 | -5/Garrison | Triggered checkpoint 31116 | -5/Garrison | Garrison Relay disabled 31234 | -5/Garrison | Build established: Botlord-Gunner 31245 | -5/Garrison | Triggered checkpoint 31248 | -5/Garrison | Triggered checkpoint 31274 | -5/Garrison | Triggered checkpoint 31803 | -5/Garrison | Expanded RIF knowledge: Program Shield 31834 | -5/Garrison | Triggered checkpoint 31866 | -5/Garrison | Discovered new exit (range 7) 31917 | -5/Garrison | Triggered checkpoint 32008 | -5/Garrison | Triggered checkpoint 32031 | -5/Garrison | Learned Factory security intel 32035 | -5/Garrison | Garrison Relay disabled 32172 | -5/Garrison | Discovered new exit (range 14) 32222 | -5/Garrison | Build established: Commander-Gunner 32480 | -5/Garrison | Triggered checkpoint 32486 | -5/Garrison | Discovered new exit (range 15) 32541 | -5/Garrison | Discovered new exit (range 28) 32541 | -5/Garrison | Discovered new exit (range 48) 32541 | -5/Garrison | Discovered new exit (range 31) 32929 | -5/Garrison | Garrison Relay disabled 33386 | -5/Garrison | Garrison Relay disabled 33387 | -5/Garrison | Garrison Relay disabled 33444 | -5/Garrison | Garrison Relay disabled 33446 | -5/Garrison | Garrison Relay disabled 33681 | -5/Garrison | Triggered checkpoint 33772 | -5/Garrison | Spotted B-75 Beast 34747 | -5/Garrison | Destroyed B-75 Beast 35597 | -5/Garrison | Entered Factory 35597 | -5/Factory | Accompanied by 28 allies 35818 | -5/Factory | Spotted B-75 Beast 35829 | -5/Factory | Allies destroyed B-75 Beast 35897 | -5/Factory | First assault squad dispatched 35937 | -5/Factory | Discovered new exit (range 15) 36150 | -5/Factory | Fabricated P-60 Hacker? 36175 | -5/Factory | Hacker 6a assimilated hostile W-25 Informer 36232 | -5/Factory | Discovered new exit (range 5) 36350 | -5/Factory | Entered Extension 36350 | -5/Extension | Accompanied by 22 allies 36381 | -5/Extension | Lost 3 allies 36400 | -5/Extension | Rescued a captive Derelict 36401 | -5/Extension | Rescued a captive Derelict 36499 | -5/Extension | Rescued a captive Derelict 36500 | -5/Extension | Rescued a captive Derelict 36550 | -5/Extension | Rescued A7 36595 | -5/Extension | Rescued a captive Derelict 36628 | -5/Extension | Rescued a captive Derelict 36628 | -5/Extension | Rescued a captive Derelict 36821 | -5/Extension | Hacker 6b assimilated hostile G-50 Soldier 36950 | -5/Extension | First assault squad dispatched 36974 | -5/Extension | Spotted B-75 Beast 36981 | -5/Extension | Destroyed B-75 Beast 36995 | -5/Extension | Spotted B-75 Beast 37011 | -5/Extension | Allies destroyed B-75 Beast 37065 | -5/Extension | Rescued a captive Derelict 37068 | -5/Extension | Lost 5 allies 37129 | -5/Extension | Rescued a captive Derelict 37129 | -5/Extension | Rescued a captive Derelict 37257 | -5/Extension | Rescued a captive Derelict 37334 | -5/Extension | Lost 7 allies 37348 | -5/Extension | Rescued a captive Derelict 37349 | -5/Extension | Rescued a captive Derelict 37356 | -5/Extension | Rescued a captive Derelict 37358 | -5/Extension | Rescued a captive Derelict 37419 | -5/Extension | Discovered new exit (range 10) 37420 | -5/Extension | Discovered new exit (range 6) 37474 | -5/Extension | Disrupted transfer network 37636 | -5/Extension | Entered Cetus 37636 | -5/Cetus | Accompanied by 44 allies (A7) 37641 | -5/Cetus | Acquired a Cetus Manufacturing Module code from A7 37648 | -5/Cetus | Spotted Cetus Guard 37650 | -5/Cetus | Spotted Cetus Guard 37651 | -5/Cetus | Spotted Cetus Guard 37651 | -5/Cetus | Spotted Cetus Guard 37652 | -5/Cetus | Allies destroyed Cetus Guard 37662 | -5/Cetus | Allies destroyed Cetus Guard 37662 | -5/Cetus | Allies destroyed Cetus Guard 37663 | -5/Cetus | Allies destroyed Cetus Guard 37692 | -5/Cetus | Lost 8 allies 37736 | -5/Cetus | Started Cetus Manufacturing Module 37746 | -5/Cetus | Escorted A7 to Cetus Mainframe 37761 | -5/Cetus | Manufactured an Enhanced Grunt 37786 | -5/Cetus | Manufactured an Enhanced Grunt 37811 | -5/Cetus | Manufactured an Enhanced Grunt 37836 | -5/Cetus | Manufactured an Enhanced Grunt 37861 | -5/Cetus | Manufactured an Enhanced Grunt 37941 | -5/Cetus | Discovered new exit (range 16) 38020 | -5/Cetus | Discovered new exit (range 26) 38026 | -5/Cetus | Spotted Cetus Guard 38026 | -5/Cetus | Spotted Cetus Guard 38029 | -5/Cetus | Spotted Cetus Guard 38029 | -5/Cetus | Spotted Cetus Guard 38034 | -5/Cetus | Allies destroyed Cetus Guard 38034 | -5/Cetus | Destroyed Cetus Guard 38037 | -5/Cetus | Destroyed Cetus Guard 38039 | -5/Cetus | Destroyed Cetus Guard 38054 | -5/Cetus | Met Revision 17 38066 | -5/Cetus | Lost 3 allies 38386 | -5/Cetus | Security sweep announced 38386 | -5/Cetus | Entered Archives 38386 | -5/Archives | Accompanied by 37 allies (A7) 38391 | -5/Archives | Received a hacking code to weaken MAIN.C 38523 | -5/Archives | Discovered new exit (range 15) 38555 | -5/Archives | Discovered new exit (range 15) 38575 | -5/Archives | Discovered new exit (range 15) 39349 | -5/Archives | Build established: Commander-Tank 39761 | -5/Archives | Build established: Commander-Gunner 40754 | -5/Archives | Entered Hub_04(d) 40754 | -5/Hub_04(d) | Accompanied by 44 allies 40814 | -5/Hub_04(d) | Discovered new exit (range 16) 40963 | -5/Hub_04(d) | Discovered new exit (range 12) 40979 | -5/Hub_04(d) | Lost 3 allies 41093 | -5/Hub_04(d) | Identified exit to Garrison 41120 | -5/Hub_04(d) | Garrison activated, responded to threat 41195 | -5/Hub_04(d) | Entered Garrison 41195 | -5/Garrison | Accompanied by 35 allies 41215 | -5/Garrison | Expanded RIF knowledge: Crosswire 41532 | -5/Garrison | Build established: Commander-Tank 41632 | -5/Garrison | Lost 4 allies 41922 | -5/Garrison | Triggered checkpoint 41957 | -5/Garrison | Triggered checkpoint 41977 | -5/Garrison | Triggered checkpoint 42085 | -5/Garrison | Garrison Relay disabled 42172 | -5/Garrison | Triggered checkpoint 42192 | -5/Garrison | Triggered checkpoint 42208 | -5/Garrison | Triggered checkpoint 42308 | -5/Garrison | Discovered new exit (range 9) 42389 | -5/Garrison | Triggered checkpoint 42418 | -5/Garrison | Garrison Relay disabled 42490 | -5/Garrison | Triggered checkpoint 42694 | -5/Garrison | Discovered new exit (range 45) 42694 | -5/Garrison | Discovered new exit (range 19) 42694 | -5/Garrison | Discovered new exit (range 57) 42754 | -5/Garrison | Expanded RIF knowledge: Coupler Efficiency 42936 | -5/Garrison | Triggered checkpoint 42954 | -5/Garrison | Garrison Relay disabled 43050 | -5/Garrison | Garrison Relay disabled 43057 | -5/Garrison | Triggered checkpoint 46148 | -5/Garrison | Entered Factory 46148 | -4/Factory | Accompanied by 40 allies 46148 | -4/Factory | Evolved 2 slots: Utility x2 46324 | -4/Factory | Fabricated P-70 Sage? 46398 | -4/Factory | First assault squad dispatched 46423 | -4/Factory | Fabricated P-70 Sage? 46443 | -4/Factory | Sucked down chute 46443 | -4/Factory | Entered Waste 46458 | -4/Waste | EMP discharged 46458 | -4/Waste | System corruption reached 10% 46481 | -4/Waste | Spotted C-40 Crusher 46489 | -4/Waste | Spotted C-40 Crusher 46494 | -4/Waste | Spotted C-40 Crusher 46502 | -4/Waste | Destroyed C-40 Crusher 46510 | -4/Waste | Allies destroyed C-40 Crusher 46512 | -4/Waste | Allies destroyed C-40 Crusher 46515 | -4/Waste | Spotted C-40 Crusher 46529 | -4/Waste | Spotted C-40 Crusher 46531 | -4/Waste | Destroyed C-40 Crusher 46541 | -4/Waste | Allies destroyed C-40 Crusher 46541 | -4/Waste | Spotted C-40 Crusher 46558 | -4/Waste | EMP discharged 46568 | -4/Waste | Allies destroyed C-40 Crusher 46591 | -4/Waste | Discovered new exit (range 11) 46658 | -4/Waste | EMP discharged 46747 | -4/Waste | Build established: Botlord-Tank 46758 | -4/Waste | EMP discharged 46758 | -4/Waste | System corruption reached 30% 46851 | -4/Waste | Entered Factory 46851 | -4/Factory | Accompanied by 20 allies 46911 | -4/Factory | 37 allies followed down the chute 47191 | -4/Factory | Build established: Commander-Tank 47197 | -4/Factory | Fabricated P-70 Sage? 47349 | -4/Factory | Spotted B-86 Titan 47350 | -4/Factory | Autoassimilated Titan 7a with RIF 47380 | -4/Factory | Lost 3 allies 47464 | -4/Factory | Identified exit to Garrison 47540 | -4/Factory | Lost 6 allies 47687 | -4/Factory | Sage 7g assimilated hostile D-63 Destroyer 47721 | -4/Factory | Lost 4 allies 47851 | -4/Factory | First assault squad dispatched 48032 | -4/Factory | Sage 7e assimilated hostile H-77 Assassin 48067 | -4/Factory | P-80 Master assimilated allied Processor 7g 48088 | -4/Factory | Lost 10 allies 48351 | -4/Factory | Discovered new exit (range 7) 48407 | -4/Factory | Found Relay Coupler [Proto] 48469 | -4/Factory | Lost 7 allies 48472 | -4/Factory | Build established: Botlord-Tank 48917 | -4/Factory | Found Relay Coupler [Proto] 48920 | -4/Factory | Found Relay Coupler [Proto] 48952 | -4/Factory | Lost 4 allies 49034 | -4/Factory | Identified exit to Garrison 49060 | -4/Factory | Entered Garrison 49060 | -4/Garrison | Accompanied by 10 allies 49109 | -4/Garrison | Triggered checkpoint 49124 | -4/Garrison | Spotted Striker 49130 | -4/Garrison | Rewired Executioner 49161 | -4/Garrison | Triggered checkpoint 49172 | -4/Garrison | Garrison Relay disabled 49284 | -4/Garrison | Spotted B-86 Titan 49290 | -4/Garrison | Triggered checkpoint 49294 | -4/Garrison | Triggered checkpoint 49305 | -4/Garrison | Allies destroyed B-86 Titan 49346 | -4/Garrison | Expanded RIF knowledge: Zone Cloak 49449 | -4/Garrison | Lost 6 allies 49565 | -4/Garrison | Discovered new exit (range 14) 49630 | -4/Garrison | Triggered checkpoint 49669 | -4/Garrison | Lost 4 allies 49888 | -4/Garrison | Triggered checkpoint 49909 | -4/Garrison | Garrison Relay disabled 50060 | -4/Garrison | Discovered new exit (range 9) 50074 | -4/Garrison | Triggered checkpoint 50094 | -4/Garrison | Garrison Relay disabled 50205 | -4/Garrison | Discovered new exit (range 8) 52287 | -4/Garrison | Found Relay Coupler [Proto] 52290 | -4/Garrison | Found Relay Coupler [Proto] 52294 | -4/Garrison | Found Relay Coupler [Proto] 52762 | -4/Garrison | Entered Research 52762 | -3/Research | Accompanied by 19 allies 52762 | -3/Research | Evolved 2 slots: Utility x2 52877 | -3/Research | Assimilated ARC 8a with formatsys_deep 52962 | -3/Research | Revision forces began assault on 0b10 53010 | -3/Research | Met up with Revision 17++ 53076 | -3/Research | Master 8a assimilated hostile H-77 Assassin 53125 | -3/Research | Identified exit to Garrison 53127 | -3/Research | Lost 5 allies 53242 | -3/Research | Lost 6 allies 53462 | -3/Research | Research terminal network offline 53752 | -3/Research | Identified exit to Garrison 53811 | -3/Research | Entered Garrison 53811 | -3/Garrison | Accompanied by 22 allies 53994 | -3/Garrison | Expanded RIF knowledge: Zone Cloak 54014 | -3/Garrison | Q-Series assembled to engage unique threat in Research 54231 | -3/Garrison | Phase Generator disabled 54321 | -3/Garrison | System corruption reached 10% 54339 | -3/Garrison | Lost 18 allies 54384 | -3/Garrison | Lost 5 parts (5w) 54405 | -3/Garrison | Garrison Relay disabled 54553 | -3/Garrison | Triggered checkpoint 54600 | -3/Garrison | Triggered checkpoint 54601 | -3/Garrison | Triggered checkpoint 54723 | -3/Garrison | Discovered new exit (range 12) 54727 | -3/Garrison | Lost 3 allies 54763 | -3/Garrison | Triggered checkpoint 54801 | -3/Garrison | Garrison Relay disabled 54863 | -3/Garrison | Q-Series assembled to engage unique threat in Research 54935 | -3/Garrison | Triggered checkpoint 54969 | -3/Garrison | Triggered checkpoint 55020 | -3/Garrison | Discovered new exit (range 8) 55033 | -3/Garrison | Triggered checkpoint 55051 | -3/Garrison | Found embedded Infiltrators 55128 | -3/Garrison | Garrison Relay disabled 55283 | -3/Garrison | Triggered checkpoint 55350 | -3/Garrison | Garrison Relay disabled 55466 | -3/Garrison | Discovered new exit (range 10) 55493 | -3/Garrison | Spotted Striker 55493 | -3/Garrison | Spotted Striker 55638 | -3/Garrison | P-80 Master assimilated allied UH-8KB(x) 55640 | -3/Garrison | P-80 Master assimilated allied WY-Q6M(g) 55675 | -3/Garrison | Lost 3 parts (1p1u1w) 55714 | -3/Garrison | QS Assembler disabled 55790 | -3/Garrison | Found Prototype Processor 55790 | -3/Garrison | Identified Exp. Targeting Computer 55794 | -3/Garrison | Found Prototype Processor 55794 | -3/Garrison | Identified Exp. Signal Interpreter 56564 | -3/Garrison | Entered Research 56564 | -2/Research | Accompanied by 8 allies 56564 | -2/Research | Evolved 2 slots: Utility x2 56813 | -2/Research | Discovered new exit (range 7) 56950 | -2/Research | Garrison activated, responded to threat 56968 | -2/Research | Spotted B-90 Cyclops 56970 | -2/Research | Assimilated Cyclops 9a with formatsys_high 56978 | -2/Research | Found Enh. Gamma Bomb Array 56983 | -2/Research | Found Enh. Gamma Bomb Array 56997 | -2/Research | Lost 13 allies 57003 | -2/Research | Discovered new exit (range 29) 57064 | -2/Research | First assault squad dispatched 57222 | -2/Research | Identified exit to Quarantine 57328 | -2/Research | Entered Quarantine 57328 | -2/Quarantine | Accompanied by 10 allies 57405 | -2/Quarantine | Found Alien Slashing Weapon 57405 | -2/Quarantine | Identified Sigix Broadsword 57549 | -2/Quarantine | Found Unknown Launcher 57549 | -2/Quarantine | Identified Gamma Bomb Array 57689 | -2/Quarantine | Build established: Botlord-Mutant 58021 | -2/Quarantine | Found Alien Artifact 58176 | -2/Quarantine | Found Alien Reactor 58246 | -2/Quarantine | Assimilated Fortress with formatsys_high 58459 | -2/Quarantine | Discovered new exit (range 6) 58459 | -2/Quarantine | Discovered new exit (range 7) 58622 | -2/Quarantine | Entered Protoforge 58622 | -2/Protoforge | Accompanied by 12 allies 58698 | -2/Protoforge | Superfortress began startup sequence 58792 | -2/Protoforge | Spotted Hotshot 58792 | -2/Protoforge | Spotted Hotshot 58793 | -2/Protoforge | Autoassimilated Hotshot with RIF 58797 | -2/Protoforge | Spotted Hotshot 58798 | -2/Protoforge | Autoassimilated Hotshot with RIF 58798 | -2/Protoforge | Spotted Hotshot 58805 | -2/Protoforge | Allies destroyed Hotshot 58812 | -2/Protoforge | Spotted Hotshot 58814 | -2/Protoforge | Spotted Hotshot 58815 | -2/Protoforge | Spotted Hotshot 58815 | -2/Protoforge | Spotted Hotshot 58816 | -2/Protoforge | Autoassimilated Hotshot with RIF 58821 | -2/Protoforge | Destroyed Hotshot 58839 | -2/Protoforge | Allies destroyed Hotshot 58848 | -2/Protoforge | Discovered new exit (range 28) 58859 | -2/Protoforge | Allies destroyed Hotshot 58889 | -2/Protoforge | Lost 5 allies 59045 | -2/Protoforge | Spotted Overlord 59046 | -2/Protoforge | Assimilated Overlord with formatsys_high 59086 | -2/Protoforge | Assimilated Overlord with formatsys_high 59115 | -2/Protoforge | Lost 3 allies 59349 | -2/Protoforge | Lost 4 allies 59633 | -2/Protoforge | Spotted Hotshot 59640 | -2/Protoforge | Spotted Hotshot 59641 | -2/Protoforge | Spotted Hotshot 59641 | -2/Protoforge | Spotted Hotshot 59642 | -2/Protoforge | Autoassimilated Hotshot with RIF 59670 | -2/Protoforge | Allies destroyed Hotshot 59673 | -2/Protoforge | Allies destroyed Hotshot 59684 | -2/Protoforge | Destroyed Hotshot 59704 | -2/Protoforge | Lost 5 allies 60710 | -2/Protoforge | Identified Matter Drive 60712 | -2/Protoforge | Additional patrols dispatched to research labs 60747 | -2/Protoforge | Crushed by falling debris 60762 | -2/Protoforge | Spotted Immortal 60786 | -2/Protoforge | System corruption reached 10% 60835 | -2/Protoforge | Allies destroyed Immortal 60878 | -2/Protoforge | Spotted Decapitator 60878 | -2/Protoforge | Spotted Decapitator 60878 | -2/Protoforge | Spotted Decapitator 60879 | -2/Protoforge | Autoassimilated Decapitator with RIF 60879 | -2/Protoforge | Autoassimilated Decapitator with RIF 60894 | -2/Protoforge | Allies destroyed Decapitator 60914 | -2/Protoforge | Found Prototype Slashing Weapon 60933 | -2/Protoforge | Spotted Hotshot 60933 | -2/Protoforge | Spotted Hotshot 60934 | -2/Protoforge | Autoassimilated Hotshot with RIF 60960 | -2/Protoforge | Destroyed Hotshot 60997 | -2/Protoforge | Spotted Hotshot 61018 | -2/Protoforge | Destroyed Hotshot 61025 | -2/Protoforge | Found Centrium Heavy Armor Plating 61027 | -2/Protoforge | Spotted Hotshot 61031 | -2/Protoforge | Spotted Hotshot 61033 | -2/Protoforge | Spotted Hotshot 61034 | -2/Protoforge | Spotted Hotshot 61035 | -2/Protoforge | Autoassimilated Hotshot with RIF 61047 | -2/Protoforge | Garrison activated, responded to threat 61057 | -2/Protoforge | Destroyed Hotshot 61059 | -2/Protoforge | Destroyed Hotshot 61060 | -2/Protoforge | Destroyed Hotshot 61076 | -2/Protoforge | Found Prototype Device 61078 | -2/Protoforge | Identified Crosscalibrator 61238 | -2/Protoforge | Found Cep. Matter Streamer 61242 | -2/Protoforge | Found Prototype Storage 61250 | -2/Protoforge | Found Cep. Chromion Battery 61253 | -2/Protoforge | Identified Cep. NT7 Matterbank 61317 | -2/Protoforge | Found Cep. Chromion Battery 61356 | -2/Protoforge | Spotted V032-o 61365 | -2/Protoforge | Destroyed V032-o 61373 | -2/Protoforge | Found Cep. Antigrav Storage Unit 61454 | -2/Protoforge | Garrison activated, responded to threat 61499 | -2/Protoforge | Lost 3 allies 61533 | -2/Protoforge | Identified exit to Garrison 61584 | -2/Protoforge | Found Cep. Reaction Jets 61587 | -2/Protoforge | Found Cep. Hardlight Director 61605 | -2/Protoforge | Spotted V873-n 61605 | -2/Protoforge | Spotted V047-c 61632 | -2/Protoforge | Destroyed V873-n 61632 | -2/Protoforge | Destroyed V047-c 61647 | -2/Protoforge | Found Prototype Protection 61647 | -2/Protoforge | Identified Cep. RG22 Armor 61661 | -2/Protoforge | Found Faulty Cep. RG22 Armor 61666 | -2/Protoforge | Found Cep. RG22 Armor 61686 | -2/Protoforge | Found Cep. Projectile Intercept Suite 61781 | -2/Protoforge | Garrison activated, responded to threat 61830 | -2/Protoforge | Spotted Decapitator 61832 | -2/Protoforge | Spotted Decapitator 61832 | -2/Protoforge | Spotted V969-w 61832 | -2/Protoforge | Spotted V134-c 61833 | -2/Protoforge | Spotted Decapitator 61846 | -2/Protoforge | Destroyed Decapitator 61846 | -2/Protoforge | Destroyed Decapitator 61854 | -2/Protoforge | Allies destroyed Decapitator 61883 | -2/Protoforge | Destroyed V134-c 61892 | -2/Protoforge | Lost 3 allies 61934 | -2/Protoforge | Found Faulty Cep. Plasma Driver 61938 | -2/Protoforge | Found Cep. Plasma Driver 61942 | -2/Protoforge | Found Exp. Jetlance 61948 | -2/Protoforge | Found Faulty Cep. XC Strikerail 61953 | -2/Protoforge | Found Cep. Miniperforator 61958 | -2/Protoforge | Found Faulty Cep. XC Strikerail 61971 | -2/Protoforge | Found Faulty Cep. XC Strikerail 61976 | -2/Protoforge | Found Faulty Cep. XC Strikerail 61989 | -2/Protoforge | Found Faulty Cep. XC Strikerail 61992 | -2/Protoforge | Found Prototype Ballistic Cannon 61997 | -2/Protoforge | Found Prototype Ballistic Cannon 62250 | -2/Protoforge | Build established: Botlord-Tank 62426 | -2/Protoforge | System corruption reached 30% 62448 | -2/Protoforge | Spotted V277-d 62448 | -2/Protoforge | Spotted V518-f 62490 | -2/Protoforge | Found Cep. Arcsight Missile Launcher 62506 | -2/Protoforge | Found Faulty Cep. EMP Blanket Launcher 62526 | -2/Protoforge | Spotted V911-k 62536 | -2/Protoforge | Destroyed V277-d 62542 | -2/Protoforge | Destroyed V518-f 62552 | -2/Protoforge | Destroyed V911-k 62580 | -2/Protoforge | Spotted V028-j 62585 | -2/Protoforge | Found Cep. Rapid Grenade Launcher 62591 | -2/Protoforge | Found Cep. Arcsight Missile Launcher 62692 | -2/Protoforge | Spotted Decapitator 62692 | -2/Protoforge | Spotted Decapitator 62692 | -2/Protoforge | Spotted Decapitator 62703 | -2/Protoforge | Destroyed Decapitator 62703 | -2/Protoforge | Destroyed Decapitator 62711 | -2/Protoforge | Destroyed Decapitator 62777 | -2/Protoforge | Found Cep. Network Penetrator 62797 | -2/Protoforge | Found Faulty Exp. Active Sensor Suite 62813 | -2/Protoforge | Spotted V450-e 62824 | -2/Protoforge | Identified Cep. Helical Railcannon 62922 | -2/Protoforge | Spotted V973-n 62922 | -2/Protoforge | Spotted V131-o 62930 | -2/Protoforge | Spotted Immortal 62939 | -2/Protoforge | Destroyed Immortal 62953 | -2/Protoforge | Spotted V210-n 62956 | -2/Protoforge | Core integrity fell below 50% 62960 | -2/Protoforge | Destroyed V210-n 62973 | -2/Protoforge | Found Cep. Zero-point Core 62979 | -2/Protoforge | Found Faulty Cep. Zero-point Core 63016 | -2/Protoforge | Spotted V251-s 63022 | -2/Protoforge | Destroyed V251-s 63027 | -2/Protoforge | Destroyed V973-n 63037 | -2/Protoforge | Destroyed V131-o 63046 | -2/Protoforge | Found Cep. Helical Railcannon 63122 | -2/Protoforge | First assault squad dispatched 63491 | -2/Protoforge | Found Prototype Device 63549 | -2/Protoforge | Found Prototype Device 63567 | -2/Protoforge | Found Prototype Device 63634 | -2/Protoforge | Identified Cep. Weapon Articulator (x3) 63670 | -2/Protoforge | Found Cep. Nanofilaments [Tensile] 63670 | -2/Protoforge | Installed Cep. Nanofilaments [Tensile], 3 resistances modified: KI +20%, TH -10%, I +20% 63690 | -2/Protoforge | Found Transdimensional Reconstructor 63701 | -2/Protoforge | Found Cep. Navigation Harness 63791 | -2/Protoforge | Spotted AP7-3 63795 | -2/Protoforge | Spotted AP7-3 63809 | -2/Protoforge | Destroyed AP7-3 63836 | -2/Protoforge | Destroyed AP7-3 63855 | -2/Protoforge | Found Prototype Energy Gun 63857 | -2/Protoforge | Identified Enh. Gamma Rifle 63878 | -2/Protoforge | Found Cep. Hypertargeting System 63980 | -2/Protoforge | Found Prototype Device 63983 | -2/Protoforge | Found Prototype Processor 64004 | -2/Protoforge | Identified Cep. Core Analysis Suite 64015 | -2/Protoforge | Identified Cep. Cloak Mesh 64027 | -2/Protoforge | Found Faulty Cep. Cloak Mesh 64036 | -2/Protoforge | Found Cep. Thermoelectric Network 64040 | -2/Protoforge | Found Cep. Thermoelectric Network 64336 | -2/Protoforge | Found Cep. Recoil Nullifier 64483 | -2/Protoforge | High security lockdown imminent 64563 | -2/Protoforge | High security lockdown engaged 64586 | -2/Protoforge | Entered Garrison 64586 | -2/Garrison | Accompanied by 6 allies 64634 | -2/Garrison | Expanded RIF knowledge: Signal Jamming 64638 | -2/Garrison | Spotted Striker 64641 | -2/Garrison | Spotted Striker 64645 | -2/Garrison | Lost 4 allies 64655 | -2/Garrison | Destroyed Striker 64657 | -2/Garrison | Allies destroyed Striker 64697 | -2/Garrison | Lost 6 allies 64748 | -2/Garrison | Triggered checkpoint 64785 | -2/Garrison | Garrison Relay disabled 64858 | -2/Garrison | Discovered new exit (range 32) 64858 | -2/Garrison | Discovered new exit (range 52) 64858 | -2/Garrison | Discovered new exit (range 47) 64858 | -2/Garrison | Triggered checkpoint 64871 | -2/Garrison | Spotted B-90 Cyclops 64902 | -2/Garrison | Triggered checkpoint 64903 | -2/Garrison | Destroyed B-90 Cyclops 64905 | -2/Garrison | Triggered checkpoint 64922 | -2/Garrison | Triggered checkpoint 64998 | -2/Garrison | Lost 4 allies 65110 | -2/Garrison | Triggered checkpoint 65113 | -2/Garrison | Spotted Striker 65113 | -2/Garrison | Spotted Striker 65119 | -2/Garrison | Destroyed Striker 65122 | -2/Garrison | Destroyed Striker 65212 | -2/Garrison | Learned Access security intel 65444 | -2/Garrison | Expanded RIF knowledge: Code Merge 65474 | -2/Garrison | Garrison Relay disabled 65631 | -2/Garrison | Found Unknown Hackware 65633 | -2/Garrison | Found Unknown Hackware 65638 | -2/Garrison | Found Unknown Hackware 65642 | -2/Garrison | Found Unknown Hackware 65890 | -2/Garrison | Build established: Botlord-Gunner 65912 | -2/Garrison | Spotted Striker 65912 | -2/Garrison | Spotted Striker 65921 | -2/Garrison | Destroyed Striker 65933 | -2/Garrison | Core integrity fell below 20% 65939 | -2/Garrison | Destroyed Striker 66130 | -2/Garrison | Garrison Relay disabled 66187 | -2/Garrison | Garrison Relay disabled 66246 | -2/Garrison | Entered Access 66246 | -1/Access | Accompanied by 3 allies 66246 | -1/Access | Evolved 2 slots: Power x1, Utility x1 66447 | -1/Access | Spotted B-99 Colossus 66489 | -1/Access | Destroyed B-99 Colossus 66494 | -1/Access | Lost 3 allies 66496 | -1/Access | First assault squad dispatched 66546 | -1/Access | Lost 3 parts (3u) 66658 | -1/Access | Lost 6 allies 66743 | -1/Access | Spotted Striker 66753 | -1/Access | Lost 4 allies 66761 | -1/Access | Spotted Striker 66767 | -1/Access | Destroyed Striker 66767 | -1/Access | Destroyed Striker 66844 | -1/Access | Spotted Striker 66844 | -1/Access | Spotted Striker 66861 | -1/Access | Destroyed Striker 66880 | -1/Access | Destroyed Striker 66891 | -1/Access | Lost 5 allies 66892 | -1/Access | Spotted Striker 66893 | -1/Access | High security lockdown imminent 66894 | -1/Access | Spotted Striker 66904 | -1/Access | Destroyed Striker 66908 | -1/Access | Destroyed Striker 66950 | -1/Access | Destroyed 22 combat bots 66953 | -1/Access | Lost 3 parts (1n1u1w) 66953 | -1/Access | Spotted Striker 66953 | -1/Access | Spotted Striker 66965 | -1/Access | Destroyed Striker 66965 | -1/Access | Spotted Executioner 66967 | -1/Access | Spotted Executioner 66970 | -1/Access | Destroyed Striker 66973 | -1/Access | High security lockdown engaged 66975 | -1/Access | Identified Relay Coupler [Proto] (x4) 66980 | -1/Access | Destroyed Executioner 66982 | -1/Access | Destroyed Executioner 67007 | -1/Access | Lost 3 parts (2p1w) 67059 | -1/Access | Spotted Striker 67059 | -1/Access | Spotted Striker 67059 | -1/Access | Spotted Striker 67068 | -1/Access | Destroyed Striker 67070 | -1/Access | Destroyed Striker 67079 | -1/Access | Destroyed Striker 67095 | -1/Access | Lost 5 allies 67143 | -1/Access | Destroyed 14 combat bots 67156 | -1/Access | Spotted Striker 67156 | -1/Access | Spotted Striker 67158 | -1/Access | Spotted Investigator 67163 | -1/Access | Destroyed Striker 67169 | -1/Access | Destroyed Striker 67183 | -1/Access | Spotted Executioner 67183 | -1/Access | Spotted Executioner 67204 | -1/Access | Destroyed Executioner 67206 | -1/Access | Destroyed Executioner 67226 | -1/Access | Scanned by Researcher 67237 | -1/Access | Lost 7 allies 67273 | -1/Access | Destroyed Investigator 67278 | -1/Access | Destroyed 15 combat bots 67278 | -1/Access | Lost 4 parts (1n3w) 67309 | -1/Access | Spotted Striker 67311 | -1/Access | Destroyed Striker 67317 | -1/Access | Spotted Executioner 67331 | -1/Access | Warped through subspace 67332 | -1/Access | Core integrity fell below 50% 67356 | -1/Access | Lost 3 parts (1n2u) 67357 | -1/Access | Destroyed 8 combat bots 67492 | -1/Access | Destroyed Executioner 67520 | -1/Access | Spotted Executioner 67520 | -1/Access | Spotted Striker 67520 | -1/Access | Destroyed Striker 67533 | -1/Access | Spotted Executioner 67533 | -1/Access | Spotted Executioner 67533 | -1/Access | Spotted Executioner 67542 | -1/Access | Destroyed Executioner 67542 | -1/Access | Destroyed Executioner 67546 | -1/Access | Spotted Striker 67548 | -1/Access | System corruption reached 10% 67550 | -1/Access | Destroyed Executioner 67553 | -1/Access | Spotted Executioner 67553 | -1/Access | Spotted Executioner 67558 | -1/Access | Spotted Executioner 67558 | -1/Access | Spotted Executioner 67558 | -1/Access | Spotted Executioner 67562 | -1/Access | Spotted Striker 67563 | -1/Access | Spotted Executioner 67564 | -1/Access | Destroyed Executioner 67570 | -1/Access | Destroyed Executioner 67575 | -1/Access | Autoassimilated Executioner with RIF 67581 | -1/Access | Core integrity fell below 20% 67585 | -1/Access | Released all parts (10) 67591 | -1/Access | Destroyed 13 combat bots 67593 | -1/Access | Destroyed by Executioner with Helical Railgun Last Messages --------------- 67582_ Adv. Remote Datajack destroyed. 67582_ Acquired Cep. NT7 Matterbank. 67583_ Cep. Antigrav Storage Unit destroyed. 67583_ Dropped Adv. Hardlight Generator. 67584_ Dropped Cep. RG22 Armor. 67584_ Dropped Cep. Zero-point Core. 67585_ Released Relay Coupler [Proto]. 67585_ Released Com. Wheel. 67585_ Released Exp. Optical Array. 67585_ Released Cep. Recoil Nullifier. 67585_ Released Relay Coupler [Demolisher]. 67585_ Released Relay Coupler [C]. 67585_ Released Exp. Coolant Injector. 67585_ Released Cep. Thermoelectric Network. 67585_ Released Enh. Armored Heavy Treads. 67587_ P-80 Master resets Executioner, system corruption cleaned. 67588_ The unstable cave ceiling collapses. 67588_ Helical Railgun crushed. 67588_ P-80 Master resets Striker, system corruption cleaned. 67593_ Penetrated by Slug. Map ----- +----------------------------------------------------+ | | | | | | | | | | | | | | | | | | | | | | | ?????????????????????????????????????????????????? | | ?????????????????????????????????????????????????? | | ?????????????????????????????????????????????????? | | ???????##########????????????????????????????????? | | ########[ #????????????????????????????????? | | ## #????????????????????????????????? | | ## #????????????????????????????????? | | ]## #????????????????????????????????? | | ] ## #????????????????????????????????? | | !] ## ! #????????????????????????????????? | | ## #????????????????????????????????? | | ##!/! #????????????????????????????????? | | * ##!%|* #????????????????????????????????? | | #!! %=##!##"#####################???????????????? | | %=%!!%%[!!!!! K K @ ????????? | | %%%! ==/!%p! ????????? | | %*!% %!!%!! E ????????? | | != # =!!###+###########################?????????? | | ## ##= #???????????????????????????????? | | ##?# ! #???????????????????????????????? | | # ##??# " #???????????????????????????????? | | #??# """ #???????????????????????????????? | | #??# """ #???????????????????????????????? | | #??# " #???????????????????????????????? | | #??# #???????????????????????????????? | | #??# #???????????????????????????????? | | ! #??###########???????????????????????????????? | | #????????????????????????????????????? ??????? | | #???????????????????????????????????? ????? | | ?####?????????????????????????????????? ?"""" | | ??????????????????????????????????????? """"" | | ??????????????????????????????????????? ! """ " | | ???????????????????????????????????????? "" "" | | ???????????????????????????????????????? "" "" | | ???????????????????????????????????##??? | | ??????????????????????????????????? ??? | | ????????????????????????????###???? #??? | | ??????????????????????????###"#####"########+#"#"# | | ##??############?######???# | +----------------------------------------------------+ Best States ------------- Heat Dissipation 94 Coolant Potential 120 Energy Generation 53 Energy Capacity 2350 Matter Stores 300 Matter Capacity 800 Sight Range 23 Terrain Scan Density 85 Jamming Range 16 Cloak Strength 6 Additional Mass Support 16 EM Shielding 4 Armor Coverage 1800 Resistance: KI 20 Resistance: TH 25 Resistance: I 20 Core Shielding 30 Propulsion Shielding 90 Weapon Shielding 90 Point Defense Rating 240 Weapon Cycling 25 Evasion (%) 64 Targeting Accuracy 30 Core Analysis 11 Recoil Reduction 103 Energy Filtering 50 Offensive Hacking 50 Defensive Hacking 14 Relay Coupler Types 11 Relay Coupler Value 360 Authchip Count 2 Item Schematics ----------------- Imp. Flight Unit | -9/Materials | Scanalyzed Datajack | -9/Materials | Scanalyzed Imp. VTOL Module | -8/Materials | Scanalyzed Enh. Autogun | -8/Materials | Scanalyzed Arm. Wheel | -8/Materials | Scanalyzed Hvy. Plasma Cannon | -8/Materials | Scanalyzed Powered Hammer | -8/Materials | Scanalyzed Gatling Laser | -8/Materials | Scanalyzed Imp. Remote Datajack | -5/Hub_04(d) | Hacked Cld. Antigrav System | -2/Protoforge | Archive Centrium Heavy Armor Plating | -2/Protoforge | Archive Adv. EM Shield | -2/Protoforge | Archive Exp. Terrain Scan Processor | -2/Protoforge | Archive Cld. Q-thruster | -2/Protoforge | Archive Imp. Diametric Drive | -2/Protoforge | Archive Helical Railgun | -2/Protoforge | Archive Robot Schematics ------------------ M-13 Machinist | -10/Materials | Hacked A-02 Transporter | -10/Materials | Hacked O-16 Technician | -9/Materials | Hacked P-60 Hacker | -6/Factory | Hacked P-70 Sage | -5/Hub_04(d) | Hacked T-07 Excavator | -2/Protoforge | Archive R-06 Scavenger | -2/Protoforge | Archive Y-72 Warden | -2/Protoforge | Archive Fabricated ------------ M-13 Machinist | x1 | -7/Factory | Authchip A-02 Transporter | x1 | -7/Factory | Authchip Adv. System Shield | x1 | -7/Factory | Preloaded Graphene Brace | x2 | -7/Factory | Preloaded P-60 Hacker | x2 | -5/Factory | Authchip P-70 Sage | x2 | -4/Factory | Authchip P-70 Sage | x2 | -4/Factory | Authchip P-70 Sage | x2 | -4/Factory | Authchip Repaired ---------- Lgt. Treads | 65% | -10/Materials | Broken Lgt. Treads | 56% | -10/Materials Lgt. Treads | 14% | -9/Materials | Broken Imp. Assault Rifle | 45% | -9/Materials Alien Tech Used ----------------- Sigix Broadsword Matter Drive Concept Nanofilaments [Tensile] Transdimensional Reconstructor Achievements -------------- None Challenges ------------ None Game ------ Seed AutogunDispersionBeam Manual? 0 Play Time 15:18:45 Cumulative 955.7 hours Start 2025.06.20 @ 21:49:34 End 2025.06.22 @ 17:49:12 Sessions 17 Manual Loads 0 Difficulty Rogue Special Mode None Game No. 492 Rogue 492 Adventurer 0 Explorer 0 Win Type - Total 23 Types 10/4/3/0/1/1/2/2/0/0 Lore% 85 Gallery% 87 Achievement% 83 Wizard Run 0 Options --------- Layout 0 ASCII 0 Keyboard 0 Movement Numpad Keybinds 0 Fullscreen 2 Font 24/Smallcaps Map View 76x50 Zoom Use 0% Tactical HUD 1 Map Filters NONE Filters SHIFT_HUE(315) Steam 1 RUN: 28b64c1e-ca23-4653-9f0a-cb18c02997fc